Expenditure Date,Department,Beneficiary,Amount (�),Summary of purpose of expenditure,Description,Merchant Category
19/06/2019,Learn 2 Live,.PROPERTY,750.00,Standard Equipment,.PROPERTY CONSORTIUM U,Trade Cont,MBOURNE,150.00,192003,HA01,0100020716,Y
11/06/2019,National Procurement Project,M&S SIMPLY,4.13,Catering/Refreshments,M&S SIMPLY FOOD - SSP,Misc Food,LMALTON,0.87,192003,FD76,0100020756,Y
13/06/2019,National Procurement Project,CMT UK LTD,15.54,Catering/Refreshments,CMT UK LTD TAXI FARE,Taxicabs &,LMALTON,3.26,192003,FD76,0100020757,Y
13/06/2019,National Procurement Project,APCOA CONN,7.00,Catering/Refreshments,APCOA CONNECT - FGW,Car Parkin,LMALTON,1.40,192003,FD76,0100020758,Y
13/06/2019,National Procurement Project,MAD BISHOP,16.45,Catering/Refreshments,MAD BISHOP & BEAR,Restaurant,LMALTON,3.45,192003,FD76,0100020759,Y
13/06/2019,National Procurement Project,STARBUCKS,5.99,Catering/Refreshments,STARBUCKS,Fast Food,LMALTON,1.26,192003,FD76,0100020760,Y
06/06/2019,Stock,WWW.SAFETY,32.76,Uniforms Purchase,WWW.SAFETYSIGNSANDNOTI,Misc. Spec,IBROOKS,6.88,192003,ZC40,0100020876,Y
03/06/2019,ICT Delivery,THREE-BILL,266.48,ICT Mobile Telephony Service,Three June Bill,Phone Serv,IGAWLERCOLLINS,53.30,192003,HF29,0100020904,Y
04/06/2019,ICT Delivery,Amazon.co.,41.50,ICT Desktop Service,Amazon.co.uk*M655M8OE4,Direct Sal,ISMITH,8.30,192003,HA20,0100020988,Y
04/06/2019,ICT Delivery,AMZNMktpla,50.32,ICT Mobile Telephony Service,2x Nokia 216,Misc. Spec,IGAWLERCOLLINS,10.06,192003,HF29,0100020905,Y
04/06/2019,ICT Delivery,AMZNMktpla,201.28,ICT Mobile Telephony Service,8x Nokia 216,Misc. Spec,IGAWLERCOLLINS,40.24,192003,HF29,0100020906,Y
04/06/2019,ICT Delivery,Amazon.co.,492.51,ICT Mobile Telephony Service,3x Motorola One handset,Direct Sal,IGAWLERCOLLINS,98.49,192003,HF29,0100020907,Y
06/06/2019,ICT Delivery,AMZNMktpla,656.68,ICT Mobile Telephony Service,4x Motorola One handsets,Misc. Spec,IGAWLERCOLLINS,131.32,192003,HF29,0100020908,Y
08/06/2019,ICT Delivery,AMZNMktpla,"1,641.70",ICT Mobile Telephony Service,AMZNMktplace,Misc. Spec,DLEWIS,328.30,192003,HF29,0100020693,Y
08/06/2019,ICT Delivery,LYRECO UK,97.00,Printing/Stationery/Photocopy,RM500 LYRECO BUDGET PAPER A4 80G WH,Stationery,NSOUTAR,19.40,192003,JA01,0100020785,Y
11/06/2019,ICT Delivery,MANX TELEC,83.30,ICT Mobile Telephony Service,MANX TELECOM June Bill,Phone Serv,IGAWLERCOLLINS,16.66,192003,HF29,0100020909,Y
17/06/2019,ICT Delivery,PREMIER FA,299.86,ICT Fixed Line Tel Ser-Hardwar,12 x Decor 2200 Corded Telephone,Electrical,BWRIGHT,60.00,192003,HF10,0100020871,Y
18/06/2019,ICT Delivery,FASTHOSTS,5.28,ICT Infrastructure Service,FASTHOSTS INTERNET,Computer N,IGAWLERCOLLINS,1.06,192003,HA24,0100020910,Y
18/06/2019,ICT Delivery,Amazon.co.,492.51,ICT Mobile Telephony Service,3x Motorola One,Direct Sal,IGAWLERCOLLINS,98.49,192003,HF29,0100020911,Y
21/06/2019,ICT Delivery,ISPRING SO,301.32,ICT Training Systems Supp Serv,ISPRING SOLUTIONS,Computer S,DLEWIS,0.00,192003,HA50,0100020694,Y
24/06/2019,ICT Delivery,PREMIER FA,30.88,Unforseen Maintnce Mats Techn,cables for ccps modems,Electrical,BWRIGHT,6.18,192003,DA12,0100020873,Y
25/06/2019,ICT Delivery,AMZNMktpla,376.48,ICT Infrastructure Service,4 of Western Digital WD40EFRX NASware,Misc. Spec,BWRIGHT,75.32,192003,HA24,0100020872,Y
25/06/2019,ICT Delivery,THREE-BILL,266.48,ICT Mobile Telephony Service,Three Mobile,Phone Serv,IGAWLERCOLLINS,53.30,192003,HF29,0100020912,Y
25/06/2019,ICT Delivery,LYRECO UK,97.00,Printing/Stationery/Photocopy,RM500 LYRECO BUDGET PAPER A4 80G WH,Stationery,NSOUTAR,19.40,192003,JA01,0100020813,Y
26/06/2019,ICT Delivery,AMZNMktpla,656.64,ICT Mobile Telephony Service,4x Motorola One,Misc. Spec,IGAWLERCOLLINS,131.32,192003,HF29,0100020913,Y
26/06/2019,ICT Delivery,Amazon.co.,225.07,ICT Mobile Telephony Service,Motorola One Vision,Direct Sal,IGAWLERCOLLINS,45.02,192003,HF29,0100020914,Y
06/06/2019,ICT Development,LYRECO UK,1.50,Printing/Stationery/Photocopy,PK4 LYRECO INDEX PAPIER 20X38MM ASSTD,Stationery,NSOUTAR,0.30,192003,JA01,0100020776,Y
06/06/2019,ICT Development,LYRECO UK,26.52,Printing/Stationery/Photocopy,PK250 LEGAMASTER MAGICNOTES 10X10 ASSTD,Stationery,NSOUTAR,5.30,192003,JA01,0100020776,Y
06/06/2019,ICT Development,LYRECO UK,34.14,Printing/Stationery/Photocopy,PK250 LEGAMASTER MAGIC NOTES 10X20 ASSTD,Stationery,NSOUTAR,6.83,192003,JA01,0100020776,Y
04/06/2019,Estates,LAND REGIS,6.00,Publications/Subscriptions,LAND REGISTRY,Government,ACHAPLIN,0.00,192003,JA04,0100020728,Y
05/06/2019,Estates,TOOLSTATIO,4.47,Standard Equipment,TOOLSTATION LTD,Hardware S,ACHAPLIN,0.89,192003,HA01,0100021025,Y
13/06/2019,Estates,TOOLSTATIO,11.20,Unforseen Maintnce Mats Techn,TOOLSTATION LTD,Hardware S,ACHAPLIN,2.24,192003,DA12,0100020845,Y
17/06/2019,Estates,THE HEIGHT,403.00,Standard Equipment,THE HEIGHTEC GROUP,Schools,ACHAPLIN,80.60,192003,HA01,0100021016,Y
18/06/2019,Estates,WESTWARD,168.99,Standard Equipment,WESTWARD,Timber & B,ACHAPLIN,33.80,192003,HA01,0100021031,Y
19/06/2019,Estates,WICKES PLY,17.92,Unforseen Maintnce Mats Techn,WICKES PLYMOUTH,Timber & B,ACHAPLIN,3.58,192003,DA12,0100021032,Y
20/06/2019,Estates,TOOLSTATIO,9.63,Standard Equipment,TOOLSTATION LTD,Hardware S,ACHAPLIN,1.93,192003,HA01,0100021033,Y
27/06/2019,Estates,TOOLSTATIO,8.99,Standard Equipment,ESTATES STANDARDEQUIPME,Hardware S,ACHAPLIN,1.56,192003,HA01,0100021037,Y
06/06/2019,Operational Assets Management,THRIFTY CA,95.40,Fuel (Petrol Etc),Fuel for Hire Cars,Thrify Ren,JOLEARY,19.08,192003,FC01,0100020901,Y
06/06/2019,Operational Assets Management,THRIFTY CA,8.00,Fuel (Petrol Etc),Vehicle Hire Fuel Charge,Thrify Ren,HWILKES,1.60,192003,FC01,0100020897,Y
06/06/2019,Operational Assets Management,THRIFTY CA,19.20,Fuel (Petrol Etc),Vehicle Hire Fuel Charge,Thrify Ren,GPATTERSON,3.84,192003,FC01,0100020899,Y
14/06/2019,Operational Assets Management,THRIFTY CA,29.76,Fuel (Petrol Etc),Vehicle Hire Fuel Charge,Thrify Ren,GPATTERSON,5.95,192003,FC01,0100020900,Y
14/06/2019,Operational Assets Management,THRIFTY CA,79.35,Fuel (Petrol Etc),Fuel Charges April 2019,Thrify Ren,JOLEARY,15.87,192003,FC01,0100020902,Y
26/06/2019,Operational Assets Management,RIGHTACTIO,685.00,Standard Equipment,RIGHTACTION LIMITED - 5 x key safe,Trade Cont,JTUCKER,137.00,192003,HA01,0100020697,Y
06/06/2019,Light Vehicle Management,THRIFTY CA,285.12,Hired Transport,Vehicle Hire Charge,Thrify Ren,JOLEARY,57.02,192003,FD01,0100020901,Y
06/06/2019,Light Vehicle Management,THRIFTY CA,456.07,Hired Transport,Feb/March Various Car Hire,Thrify Ren,JTUCKER,95.77,192003,FD01,0100020884,Y
12/06/2019,Light Vehicle Management,AMZNMktpla,22.59,Standard Equipment,AMZNMktplace - depth/tyre gauge,Misc. Spec,JTUCKER,3.12,192003,HA01,0100020696,Y
14/06/2019,Light Vehicle Management,THRIFTY CA,503.19,Hired Transport,Various hires - April 2019,Thrify Ren,JTUCKER,105.67,192003,FD01,0100020885,Y
06/06/2019,Chelston Vehicle Engineering,RAJAPACK L,39.23,BA Miscellaneous Purchase,RAJAPACK LTD,Stationery,CMCEVOY,0.00,192003,HB08,0100020732,Y
06/06/2019,Chelston Vehicle Engineering,LYRECO UK,4.00,Printing/Stationery/Photocopy,LYRECO HARD BACK TWIN WIRE NOTEBOOK A4,Stationery,NSOUTAR,0.80,192003,JA01,0100020779,Y
06/06/2019,Chelston Vehicle Engineering,LYRECO UK,3.50,Printing/Stationery/Photocopy,LYRECO TWIN WIRE SPIRAL PAD A5,Stationery,NSOUTAR,0.70,192003,JA01,0100020779,Y
06/06/2019,Chelston Vehicle Engineering,LYRECO UK,1.35,Printing/Stationery/Photocopy,BX4 LYRECO PENSTYLE H/LIGHTER L/INK ASS,Stationery,NSOUTAR,0.27,192003,JA01,0100020779,Y
06/06/2019,Chelston Vehicle Engineering,LYRECO UK,1.56,Printing/Stationery/Photocopy,LYRECO ROLLER LIQUID INK MEDIUM BLACK,Stationery,NSOUTAR,0.31,192003,JA01,0100020779,Y
06/06/2019,Chelston Vehicle Engineering,LYRECO UK,13.94,Printing/Stationery/Photocopy,DYMO 45013 D1 TAPE 12MMX7M BLK/WH,Stationery,NSOUTAR,2.79,192003,JA01,0100020779,Y
11/06/2019,Chelston Vehicle Engineering,RAJAPACK L,39.23,Printing/Stationery/Photocopy,RAJAPACK LTD,Stationery,CMCEVOY,0.00,192003,JA01,0100020733,Y
12/06/2019,Chelston Vehicle Engineering,LYRECO UK,1.08,Printing/Stationery/Photocopy,BX250 WHITE ADDRESS LABELS 89X37,Stationery,NSOUTAR,0.22,192003,JA01,0100020794,Y
12/06/2019,Chelston Vehicle Engineering,LYRECO UK,13.94,Printing/Stationery/Photocopy,DYMO 45013 D1 TAPE 12MMX7M BLK/WH,Stationery,NSOUTAR,2.79,192003,JA01,0100020794,Y
19/06/2019,Chelston Vehicle Engineering,B & Q 1312,21.00,Vehicle Consumables,HW PLYWOOD,Timber & B,CMCEVOY,4.20,192003,FA06,0100020735,Y
19/06/2019,Chelston Vehicle Engineering,TAUNTON GA,26.29,Direct Replacmnt Parts-Defects,TAUNTON GALMI,Timber & B,CMCEVOY,0.00,192003,FA14,0100020736,Y
19/06/2019,Chelston Vehicle Engineering,WWW.BALLUF,223.56,Direct Replacmnt Parts-Defects,WWW.BALLUFF.CO.UK,Misc Indus,CMCEVOY,0.00,192003,FA14,0100020734,Y
10/06/2019,Crownhill Vehicle Engineering,BUILD PLUM,61.78,Direct Replacmnt Parts-Defects,BUILD PLUMB PLASTICS LIMI,Plumbing &,DFRICKER,12.97,192003,FA14,0100020955,Y
10/06/2019,Crownhill Vehicle Engineering,L & S ENGI,45.25,Operational Equipment,L & S ENGINEERS LT,Misc Comme,DFRICKER,9.05,192003,HC00,0100020956,Y
12/06/2019,Crownhill Vehicle Engineering,C & L MAIL,63.18,Operational Equipment,C & L MAIL ORDER LTD,"Watch, Clo",NCHRISTOPHER,12.64,192003,HC00,0100021040,Y
12/06/2019,Crownhill Vehicle Engineering,LYRECO UK,0.35,Printing/Stationery/Photocopy,BX5000 LYRECO 26/6 STAPLES,Stationery,NSOUTAR,0.07,192003,JA01,0100020795,Y
12/06/2019,Crownhill Vehicle Engineering,LYRECO UK,0.14,Printing/Stationery/Photocopy,LYRECO PLASTIC ERASER,Stationery,NSOUTAR,0.02,192003,JA01,0100020795,Y
12/06/2019,Crownhill Vehicle Engineering,LYRECO UK,0.32,Printing/Stationery/Photocopy,STANDARD RULER 12 /30CM CLR,Stationery,NSOUTAR,0.07,192003,JA01,0100020795,Y
12/06/2019,Crownhill Vehicle Engineering,LYRECO UK,4.30,Printing/Stationery/Photocopy,LYRECO SHORTHAND NOTEBOOK 150S 56G,Stationery,NSOUTAR,0.86,192003,JA01,0100020795,Y
12/06/2019,Crownhill Vehicle Engineering,LYRECO UK,8.90,Printing/Stationery/Photocopy,RM500 LYRECO BUDGET PAPER A4 75G WH,Stationery,NSOUTAR,1.78,192003,JA01,0100020795,Y
12/06/2019,Crownhill Vehicle Engineering,LYRECO UK,8.40,Printing/Stationery/Photocopy,BX100 LYRECO LAM POUCH 2X125MI A4 GLOSS,Stationery,NSOUTAR,1.68,192003,JA01,0100020795,Y
13/06/2019,Crownhill Vehicle Engineering,COLOUR DAT,206.95,Operational Equipment,COLOUR DATA UK LTD,Publishing,NCHRISTOPHER,41.39,192003,HC00,0100021041,Y
18/06/2019,Crownhill Vehicle Engineering,L & S ENGI,46.25,Operational Equipment,L & S ENGINEERS LTD,Hardware S,DFRICKER,9.25,192003,HC00,0100020957,Y
19/06/2019,Crownhill Vehicle Engineering,AMZNMKTPLA,12.90,Garage Equipment,AMZNMKTPLACE AMAZON.CO.UK,Misc. Spec,NCHRISTOPHER,2.58,192003,FA01,0100021042,Y
20/06/2019,Crownhill Vehicle Engineering,REDTRONIC,164.28,Operational Equipment,REDTRONIC LTD,Misc Indus,NCHRISTOPHER,32.86,192003,HC00,0100021043,Y
20/06/2019,Crownhill Vehicle Engineering,XMA LTD,46.69,Print Consumables,HP 203A ORIGINAL BLACK LASERJET TONE,Programmin,NSOUTAR,9.34,192003,JA02,0100020832,Y
20/06/2019,Crownhill Vehicle Engineering,XMA LTD,55.04,Print Consumables,HP 203A ORIGINAL CYAN LASERJET TONER,Programmin,NSOUTAR,11.01,192003,JA02,0100020832,Y
20/06/2019,Crownhill Vehicle Engineering,XMA LTD,55.04,Print Consumables,HP 203A ORIGINAL MAGENTA LASERJET TO,Programmin,NSOUTAR,11.01,192003,JA02,0100020832,Y
27/06/2019,Crownhill Vehicle Engineering,ATEXOR LTD,75.00,Direct Replacmnt Parts-Defects,ATEXOR LTD,Ironmonger,ACHAPLIN,15.00,192003,FA14,0100020846,Y
27/06/2019,Crownhill Vehicle Engineering,AMZNMktpla,25.60,Printing/Stationery/Photocopy,AMZNMktplace,Misc. Spec,NCHRISTOPHER,5.12,192003,JA01,0100021044,Y
13/06/2019,Insurance & Risk,WWW.ICO.GO,"2,900.00",Publications/Subscriptions,WWW.ICO.GOV.UK,Government,KLDAVEY,0.00,192003,JA04,0100021072,Y
20/06/2019,Insurance & Risk,LYRECO UK,4.64,Standard Equipment,PK10 ENERGIZER INDUSTRIAL ALK BATT AAA,Stationery,NSOUTAR,0.93,192003,HA01,0100020803,Y
20/06/2019,Insurance & Risk,LYRECO UK,3.86,Standard Equipment,PK10 ENERGIZER INDUSTRIAL ALK BAT AA LR6,Stationery,NSOUTAR,0.77,192003,HA01,0100020803,Y
20/06/2019,Insurance & Risk,LYRECO UK,1.47,Printing/Stationery/Photocopy,PK6LYRECO REPO NOTE 76X127 ASS BRILL COL,Stationery,NSOUTAR,0.30,192003,JA01,0100020803,Y
20/06/2019,Insurance & Risk,LYRECO UK,0.48,Printing/Stationery/Photocopy,LYRECO B/POINT PEN MED POINT BLK,Stationery,NSOUTAR,0.09,192003,JA01,0100020803,Y
20/06/2019,Insurance & Risk,LYRECO UK,0.24,Printing/Stationery/Photocopy,LYRECO YEARLY CALENDAR,Stationery,NSOUTAR,0.05,192003,JA01,0100020803,Y
20/06/2019,Insurance & Risk,LYRECO UK,0.46,Printing/Stationery/Photocopy,ANTISLIP MOUSE PAD BLK,Stationery,NSOUTAR,0.09,192003,JA01,0100020803,Y
20/06/2019,Insurance & Risk,LYRECO UK,3.00,Printing/Stationery/Photocopy,LYRECO NOTEBOOK SPIRAL A4+ RULED 70G 80S,Stationery,NSOUTAR,0.60,192003,JA01,0100020803,Y
20/06/2019,Insurance & Risk,LYRECO UK,3.50,Printing/Stationery/Photocopy,LYRECO TWIN WIRE SPIRAL PAD A5,Stationery,NSOUTAR,0.70,192003,JA01,0100020803,Y
01/06/2019,Democratic Services,LYRECO UK,-20.96,Printing/Stationery/Photocopy,BX200 PAPER BINDERS 25MM,Stationery,NSOUTAR,-4.19,192003,JA01,0100020770,Y
01/06/2019,Democratic Services,LYRECO UK,-12.48,Printing/Stationery/Photocopy,BX200 PAPER BINDERS 19MM,Stationery,NSOUTAR,-2.50,192003,JA01,0100020770,Y
01/06/2019,Democratic Services,LYRECO UK,1.16,Printing/Stationery/Photocopy,PK12 FOLD BACK CLIPS 12X25MM BLACK,Stationery,NSOUTAR,0.23,192003,JA01,0100020766,Y
01/06/2019,Democratic Services,LYRECO UK,1.64,Printing/Stationery/Photocopy,BX12 FOLD BACK CLIPS 15X32MM BLACK,Stationery,NSOUTAR,0.33,192003,JA01,0100020766,Y
01/06/2019,Democratic Services,LYRECO UK,0.76,Printing/Stationery/Photocopy,BX12 FOLD BACK CLIPS 7X19MM BLACK,Stationery,NSOUTAR,0.15,192003,JA01,0100020766,Y
04/06/2019,Democratic Services,LYRECO UK,7.50,Printing/Stationery/Photocopy,PK5 POPPER WALLET FOOLSCAP BRIGHT ASST,Stationery,NSOUTAR,1.50,192003,JA01,0100020772,Y
04/06/2019,Democratic Services,LYRECO UK,1.32,Printing/Stationery/Photocopy,BK25 LYRECO PREMIUM C/FLUSH FOLD 150MI,Stationery,NSOUTAR,0.26,192003,JA01,0100020772,Y
07/06/2019,Democratic Services,TESCO STOR,10.44,Catering/Refreshments,TESCO STORE 2487,Grocery St,SSHARMAN,0.00,192003,FD76,0100020918,Y
13/06/2019,Democratic Services,LYRECO UK,2.04,Printing/Stationery/Photocopy,PK50 LYRECO ENV C4 90G S/S WH,Stationery,NSOUTAR,0.40,192003,JA01,0100020797,Y
13/06/2019,Democratic Services,LYRECO UK,1.11,Printing/Stationery/Photocopy,PK50 LYRECO ENV C5 90G S/S WH,Stationery,NSOUTAR,0.23,192003,JA01,0100020797,Y
13/06/2019,Democratic Services,LYRECO UK,6.00,Printing/Stationery/Photocopy,LYRECO FEINT RULED & MARGIN RFL PAD A4,Stationery,NSOUTAR,1.20,192003,JA01,0100020797,Y
13/06/2019,Democratic Services,LYRECO UK,0.32,Printing/Stationery/Photocopy,LYRECO BUDGET SYM SCISSORS 21 CM,Stationery,NSOUTAR,0.06,192003,JA01,0100020797,Y
13/06/2019,Democratic Services,LYRECO UK,36.27,Printing/Stationery/Photocopy,RM500 LYRECO PAPER A3 80G WH,Stationery,NSOUTAR,7.25,192003,JA01,0100020797,Y
21/06/2019,Democratic Services,EXETER AUD,15.00,Ad-blue exhaust fluid,EXETER AUDI,Automobile,SSHARMAN,3.00,192003,FC07,0100020940,Y
24/06/2019,Democratic Services,PAVILION P,67.00,Printing/Stationery/Photocopy,PAVILION PUBLISHING AN,"Books, Per",SSHARMAN,0.80,192003,JA01,0100020919,Y
24/06/2019,Democratic Services,AMZNMKTPLA,15.97,Printing/Stationery/Photocopy,AMZNMKTPLACE AMAZON.CO.UK,Misc. Spec,SSHARMAN,0.00,192003,JA01,0100020920,Y
25/06/2019,Democratic Services,LYRECO UK,15.89,Printing/Stationery/Photocopy,/DORMY TRODAT 4727 SELF-INKING DATER,Stationery,NSOUTAR,3.18,192003,JA01,0100020811,Y
06/06/2019,Programme Office,LYRECO UK,4.00,Printing/Stationery/Photocopy,LYRECO THINGS TO DO PAD,Stationery,NSOUTAR,0.80,192003,JA01,0100020780,Y
06/06/2019,Programme Office,LYRECO UK,15.00,Printing/Stationery/Photocopy,PK5 POPPER WALLET FOOLSCAP BRIGHT ASST,Stationery,NSOUTAR,3.00,192003,JA01,0100020780,Y
07/06/2019,Programme Office,XMA LTD,90.00,Print Consumables,KINGSTON TECHNOLOGY DATATRAVELER,Programmin,NSOUTAR,18.00,192003,JA02,0100020827,Y
08/06/2019,Programme Office,LYRECO UK,2.58,Printing/Stationery/Photocopy,BX1000 LYRECO M/PURPOSE LABEL 105X57,Stationery,NSOUTAR,0.51,192003,JA01,0100020787,Y
11/06/2019,Programme Office,LYRECO UK,3.11,Printing/Stationery/Photocopy,BX500G LYRECO RUBBER BANDS 150X5MM BLOND,Stationery,NSOUTAR,0.63,192003,JA01,0100020790,Y
11/06/2019,Programme Office,LYRECO UK,15.00,Printing/Stationery/Photocopy,PK5 POPPER WALLET FOOLSCAP BRIGHT ASST,Stationery,NSOUTAR,3.00,192003,JA01,0100020790,Y
04/06/2019,Procurement,MOTO CP PL,6.30,Catering/Refreshments,MOTO CP PLUS,Restaurant,KLDAVEY,0.00,192003,FD76,0100021071,Y
04/06/2019,Procurement,TIVERTON C,6.54,Catering/Refreshments,TIVERTON COSTA,Restaurant,PAIGHTON,0.00,192003,FD76,0100020927,Y
11/06/2019,Procurement,TELFORD IN,4.40,Catering/Refreshments,TELFORD INTERNATIONAL CEN,Misc Busin,PAIGHTON,0.00,192003,FD76,0100020928,Y
11/06/2019,Procurement,WELCOME BR,3.75,Catering/Refreshments,WELCOME BREAK STARBUCK,Misc Food,PAIGHTON,0.00,192003,FD76,0100020929,Y
11/06/2019,Procurement,AMZNMKTPLA,10.48,Standard Equipment,AMZNMKTPLACE AMAZON.CO.UK,Misc. Spec,ALEE,0.00,192003,HA01,0100020755,Y
12/06/2019,Procurement,COSTA COFF,5.05,Catering/Refreshments,COSTA COFFEE 43038610,Fast Food,PAIGHTON,0.00,192003,FD76,0100020930,Y
12/06/2019,Procurement,ROADCHEF M,2.15,Catering/Refreshments,ROADCHEF M SERV UPAY L,Restaurant,PAIGHTON,0.00,192003,FD76,0100020931,Y
12/06/2019,Procurement,MCDONALDS,2.68,Catering/Refreshments,MCDONALDS,Fast Food,PAIGHTON,0.00,192003,FD76,0100020932,Y
13/06/2019,Procurement,WWW.CIPS.O,156.00,Non-Uniformed Training,WWW.CIPS.ORG,Membership,PAIGHTON,0.00,192003,AE14,0100020933,Y
13/06/2019,Procurement,APCOA CONN,8.50,Subsistence Uniformed,APCOA CONNECT - FGW,Car Parkin,MWALSH,1.70,192003,FD75,0100020685,Y
17/06/2019,Procurement,SOUTH GLOU,3.12,Catering/Refreshments,SOUTH GLOUCESTERSHIRE,Fast Food,PAIGHTON,0.00,192003,FD76,0100020934,Y
17/06/2019,Procurement,SOUTH GLOU,2.47,Catering/Refreshments,SOUTH GLOUCESTERSHIRE,Fast Food,PAIGHTON,0.00,192003,FD76,0100020935,Y
24/06/2019,Procurement,SOUTH GLOU,3.12,Catering/Refreshments,SOUTH GLOUCESTERSHIRE,Fast Food,PAIGHTON,0.00,192003,FD76,0100020936,Y
24/06/2019,Procurement,SOUTH GLOU,2.47,Catering/Refreshments,SOUTH GLOUCESTERSHIRE,Fast Food,PAIGHTON,0.00,192003,FD76,0100020937,Y
27/06/2019,Procurement,WWW.CIPFA.,312.00,Corporate Membership/Subscript,WWW.CIPFA.ORG.UK/PFMCO,Membership,KLDAVEY,0.00,192003,HJ08,0100021073,Y
01/06/2019,Chelston Stores,LYRECO UK,35.60,Printing/Stationery/Photocopy,RM500 LYRECO BUDGET PAPER A4 75G WH,Stationery,NSOUTAR,7.12,192003,JA01,0100020768,Y
01/06/2019,Chelston Stores,LYRECO UK,4.11,Printing/Stationery/Photocopy,SELLOTAPE BENCH TAPE DISPENSER CHROME,Stationery,NSOUTAR,0.82,192003,JA01,0100020768,Y
01/06/2019,Chelston Stores,LYRECO UK,5.81,Printing/Stationery/Photocopy,BX100 FELLOWES LAM POUCH A4 2X80MI GLOSS,Stationery,NSOUTAR,1.16,192003,JA01,0100020768,Y
01/06/2019,Chelston Stores,LYRECO UK,7.68,Printing/Stationery/Photocopy,LYRECO RETRACTABLE B/POINT PEN MED BLK,Stationery,NSOUTAR,1.54,192003,JA01,0100020768,Y
01/06/2019,Chelston Stores,LYRECO UK,11.20,Printing/Stationery/Photocopy,BX100 FELLOWES LAM POUCH A3 2X80MI GLOSS,Stationery,NSOUTAR,2.24,192003,JA01,0100020768,Y
11/06/2019,Chelston Stores,LYRECO UK,3.12,Printing/Stationery/Photocopy,LYRECO RETRACT GEL INK PEN 0.7MM BLK,Stationery,NSOUTAR,0.63,192003,JA01,0100020792,Y
20/06/2019,Chelston Stores,FAIRWAY OF,99.00,Standard Equipment,FAIRWAY OFFICE SUPPLIE,Furniture,NHAYMAN,19.80,192003,HA01,0100020874,Y
02/06/2019,Public Relations,FASTHOSTS,6.34,ICT Application Services (Oth),FASTHOSTS INTERNET,Computer N,RHARRIS,0.00,192003,HA22,0100021059,Y
03/06/2019,Public Relations,iStock.com,8.40,Printing/Stationery/Photocopy,iStock.com,Commercial,RHARRIS,0.00,192003,JA01,0100021060,Y
04/06/2019,Public Relations,FACEBK 5B2,300.17,Recruitment Advertising,FACEBK 5B2EANWFF2,Advertisin,RHARRIS,0.00,192003,JB01,0100021061,Y
07/06/2019,Public Relations,dotmailer,240.00,Corporate Membership/Subscript,dotmailer,Digital Ma,PSLAVEN,0.00,192003,HJ08,0100020860,Y
08/06/2019,Public Relations,FACEBK ALQ,600.00,Recruitment Advertising,FACEBK ALQHNLSFF2,Advertisin,RHARRIS,0.00,192003,JB01,0100021062,Y
17/06/2019,Public Relations,FASTHOSTS,6.00,ICT Application Services (Oth),FASTHOSTS INTERNET,Computer N,RHARRIS,0.00,192003,HA22,0100021063,Y
18/06/2019,Public Relations,ADOBE  PRO,8.42,ICT Application Services (Oth),ADOBE  PRODUCTS,Computer S,PSLAVEN,1.68,192003,HA22,0100020861,Y
19/06/2019,Public Relations,SP * PDK C,11.68,ICT Application Services (Oth),SP * PDK CHARNWOOD,Computer S,RHARRIS,0.00,192003,HA22,0100021064,Y
20/06/2019,Public Relations,FACEBK YD4,82.78,Recruitment Advertising,FACEBK YD4JJK2752,Advertisin,RHARRIS,0.00,192003,JB01,0100021065,Y
21/06/2019,Public Relations,ADOBE  PR,16.64,ICT Application Services (Oth),ADOBE  PR CREATIVE CLD,Computer S,PSLAVEN,3.33,192003,HA22,0100020862,Y
25/06/2019,Public Relations,TESCO STOR,112.10,Catering/Refreshments,TESCO STORE 2487,Grocery St,RHARRIS,0.00,192003,FD76,0100021067,Y
25/06/2019,Public Relations,THE RANGE,10.00,Standard Equipment,THE RANGE,Department,RHARRIS,0.00,192003,HA01,0100021068,Y
25/06/2019,Public Relations,SP * PDK C,14.99,ICT Application Services (Oth),SP * PDK CHARNWOOD,Computer S,RHARRIS,0.00,192003,HA22,0100021066,Y
14/06/2019,Inspection Readiness &Analysis,THRIFTY CA,181.94,Hired Transport,Vehicle Hire Charge,Thrify Ren,JTUCKER,36.39,192003,FD01,0100020885,Y
14/06/2019,Inspection Readiness &Analysis,THRIFTY CA,138.90,Hired Transport,Vehicle Hire Charge,Thrify Ren,JTUCKER,27.78,192003,FD01,0100020885,Y
12/06/2019,Barnstaple Group,BOOKER LIM,118.91,Wholetime Fireground Feeding,BOOKER LIMITED BARNSTAPLE,Caterers,LFREEMAN,23.78,192003,FD58,0100020834,Y
13/06/2019,Barnstaple Group,LYRECO UK,3.86,Standard Equipment,PK10 ENERGIZER INDUSTRIAL ALK BAT AA LR6,Stationery,NSOUTAR,0.77,192003,HA01,0100020798,Y
13/06/2019,Barnstaple Group,LYRECO UK,4.64,Standard Equipment,PK10 ENERGIZER INDUSTRIAL ALK BATT AAA,Stationery,NSOUTAR,0.93,192003,HA01,0100020798,Y
13/06/2019,Barnstaple Group,LYRECO UK,0.62,Printing/Stationery/Photocopy,PK55 LYRECO ADHESIVE PADS 50G,Stationery,NSOUTAR,0.12,192003,JA01,0100020798,Y
13/06/2019,Barnstaple Group,LYRECO UK,5.35,Printing/Stationery/Photocopy,PK250 LYRECO WDW ENV C4 100G S/S WH,Stationery,NSOUTAR,1.07,192003,JA01,0100020798,Y
13/06/2019,Barnstaple Group,LYRECO UK,0.24,Printing/Stationery/Photocopy,STANDARD RULER 12 /30CM CLR,Stationery,NSOUTAR,0.05,192003,JA01,0100020798,Y
13/06/2019,Barnstaple Group,LYRECO UK,2.90,Printing/Stationery/Photocopy,LYRECO HARD BACK TWIN WIRE NOTEBOOK A5,Stationery,NSOUTAR,0.58,192003,JA01,0100020798,Y
13/06/2019,Barnstaple Group,LYRECO UK,6.50,Printing/Stationery/Photocopy,LUMOCOLOR 318 PERM OHP PEN FINE RED,Stationery,NSOUTAR,1.30,192003,JA01,0100020798,Y
13/06/2019,Barnstaple Group,LYRECO UK,10.80,Printing/Stationery/Photocopy,LUMOCOLOR 318 PERM OHP PEN FINE BLK,Stationery,NSOUTAR,2.16,192003,JA01,0100020798,Y
13/06/2019,Barnstaple Group,LYRECO UK,6.24,Printing/Stationery/Photocopy,LYRECO RETRACT GEL INK PEN 0.7MM BLK,Stationery,NSOUTAR,1.25,192003,JA01,0100020798,Y
13/06/2019,Barnstaple Group,LYRECO UK,12.68,Printing/Stationery/Photocopy,EXACOMPTA DISPLAY RACKS A4 W/ 3 COMP,Stationery,NSOUTAR,2.54,192003,JA01,0100020798,Y
19/06/2019,Barnstaple Group,ASDA BIDEF,3.50,Catering/Refreshments,ASDA BIDEFORD 4356,Grocery St,JWORSLEY,0.00,192003,FD76,0100020859,Y
06/06/2019,Barnstaple,THRIFTY CA,42.14,Hired Transport,Vehicle Hire Charge,Thrify Ren,GPATTERSON,8.43,192003,FD01,0100020899,Y
06/06/2019,Barnstaple,THRIFTY CA,22.14,Hired Transport,Vehicle Hire Charge,Thrify Ren,GPATTERSON,4.43,192003,FD01,0100020899,Y
06/06/2019,Barnstaple,THRIFTY CA,44.28,Hired Transport,Vehicle Hire Charge,Thrify Ren,GPATTERSON,8.86,192003,FD01,0100020899,Y
06/06/2019,Barnstaple,THRIFTY CA,309.96,Hired Transport,Vehicle Hire Charge,Thrify Ren,GPATTERSON,62.02,192003,FD01,0100020899,Y
06/06/2019,Barnstaple,THRIFTY CA,93.80,Hired Transport,Vehicle Hire Charge,Thrify Ren,GPATTERSON,18.76,192003,FD01,0100020899,Y
14/06/2019,Barnstaple,THRIFTY CA,199.26,Hired Transport,Vehicle Hire Charge,Thrify Ren,GPATTERSON,39.87,192003,FD01,0100020900,Y
14/06/2019,Barnstaple,THRIFTY CA,44.28,Hired Transport,Vehicle Hire Charge,Thrify Ren,GPATTERSON,8.86,192003,FD01,0100020900,Y
26/06/2019,Barnstaple,BOOKER LIM,35.94,Wholetime Fireground Feeding,BOOKER LIMITED BARNSTAPLE,Caterers,LFREEMAN,7.19,192003,FD58,0100020835,Y
14/06/2019,Braunton,THRIFTY CA,22.14,Hired Transport,Vehicle Hire Charge,Thrify Ren,GPATTERSON,4.43,192003,FD01,0100020900,Y
06/06/2019,Combe Martin,THRIFTY CA,22.14,Hired Transport,Vehicle Hire Charge,Thrify Ren,GPATTERSON,4.43,192003,FD01,0100020899,Y
14/06/2019,Combe Martin,THRIFTY CA,22.14,Hired Transport,Vehicle Hire Charge,Thrify Ren,GPATTERSON,4.43,192003,FD01,0100020900,Y
14/06/2019,Combe Martin,THRIFTY CA,22.14,Hired Transport,Vehicle Hire Charge,Thrify Ren,GPATTERSON,4.43,192003,FD01,0100020900,Y
06/06/2019,Lynton,THRIFTY CA,22.14,Hired Transport,Vehicle Hire Charge,Thrify Ren,GPATTERSON,4.43,192003,FD01,0100020899,Y
06/06/2019,Lynton,THRIFTY CA,22.14,Hired Transport,Vehicle Hire Charge,Thrify Ren,GPATTERSON,4.43,192003,FD01,0100020899,Y
06/06/2019,Lynton,THRIFTY CA,23.39,Hired Transport,Vehicle Hire Charge,Thrify Ren,GPATTERSON,4.68,192003,FD01,0100020899,Y
06/06/2019,Lynton,THRIFTY CA,44.28,Hired Transport,Vehicle Hire Charge,Thrify Ren,GPATTERSON,8.86,192003,FD01,0100020899,Y
06/06/2019,Lynton,THRIFTY CA,22.14,Hired Transport,Vehicle Hire Charge,Thrify Ren,GPATTERSON,4.43,192003,FD01,0100020899,Y
14/06/2019,Lynton,THRIFTY CA,22.14,Hired Transport,Vehicle Hire Charge,Thrify Ren,GPATTERSON,4.43,192003,FD01,0100020900,Y
14/06/2019,Lynton,THRIFTY CA,22.14,Hired Transport,Vehicle Hire Charge,Thrify Ren,GPATTERSON,4.43,192003,FD01,0100020900,Y
14/06/2019,Lynton,THRIFTY CA,22.14,Hired Transport,Vehicle Hire Charge,Thrify Ren,GPATTERSON,4.43,192003,FD01,0100020900,Y
12/06/2019,South Molton,XMA LTD,32.24,Print Consumables,78A BLACK LASERJET CONTRACT TON CART,Programmin,NSOUTAR,6.45,192003,JA02,0100020829,Y
06/06/2019,Woolacombe,THRIFTY CA,23.39,Hired Transport,Vehicle Hire Charge,Thrify Ren,GPATTERSON,4.68,192003,FD01,0100020899,Y
06/06/2019,Appledore,THRIFTY CA,44.28,Hired Transport,Vehicle Hire Charge,Thrify Ren,HWILKES,8.86,192003,FD01,0100020897,Y
06/06/2019,Appledore,THRIFTY CA,22.14,Hired Transport,Vehicle Hire Charge,Thrify Ren,HWILKES,4.43,192003,FD01,0100020897,Y
06/06/2019,Bideford,Amazon.co.,20.82,Cleaning/Kitchen Equipment,Amazon.co.uk - HENRY HOOVER HOSE,Direct Sal,HWILKES,4.17,192003,HA03,0100021069,Y
11/06/2019,Bideford,UK Tool Ce,16.36,Unforseen Maintnce Mats Techn,UK Tool Centre Limited,Ironmonger,ACHAPLIN,3.29,192003,DA12,0100020730,Y
14/06/2019,Bideford,Amazon.co.,23.61,Cleaning/Kitchen Equipment,Amazon.co.uk 3 X EXTENSION LEADS,Direct Sal,HWILKES,4.74,192003,HA03,0100021070,Y
06/06/2019,Hartland,THRIFTY CA,84.30,Hired Transport,Vehicle Hire Charge,Thrify Ren,HWILKES,16.86,192003,FD01,0100020897,Y
14/06/2019,Hartland,THRIFTY CA,84.30,Hired Transport,Vehicle Hire Charge,Thrify Ren,HWILKES,16.86,192003,FD01,0100020898,Y
06/06/2019,Hatherleigh,THRIFTY CA,22.14,Hired Transport,Vehicle Hire Charge,Thrify Ren,HWILKES,4.43,192003,FD01,0100020897,Y
06/06/2019,Holsworthy,THRIFTY CA,22.14,Hired Transport,Vehicle Hire Charge,Thrify Ren,HWILKES,4.43,192003,FD01,0100020897,Y
06/06/2019,Witheridge,THRIFTY CA,22.14,Hired Transport,Vehicle Hire Charge,Thrify Ren,GPATTERSON,4.43,192003,FD01,0100020899,Y
06/06/2019,Witheridge,THRIFTY CA,22.14,Hired Transport,Vehicle Hire Charge,Thrify Ren,GPATTERSON,4.43,192003,FD01,0100020899,Y
03/06/2019,Exeter Group,CURRYS,230.00,Cleaning/Kitchen Equipment,CURRYS,Electronic,SWALTERS,0.00,192003,HA03,0100020688,Y
06/06/2019,Exeter Group,THRIFTY CA,62.28,Hired Transport,Vehicle Hire Charge,Thrify Ren,JPATERSON,12.46,192003,FD01,0100020889,Y
06/06/2019,Exeter Group,THRIFTY CA,51.28,Hired Transport,Vehicle Hire Charge,Thrify Ren,JPATERSON,10.26,192003,FD01,0100020889,Y
06/06/2019,Exeter Group,THRIFTY CA,25.64,Hired Transport,Vehicle Hire Charge,Thrify Ren,JPATERSON,5.13,192003,FD01,0100020889,Y
06/06/2019,Exeter Group,THRIFTY CA,62.28,Hired Transport,Vehicle Hire Charge,Thrify Ren,JPATERSON,12.46,192003,FD01,0100020889,Y
06/06/2019,Exeter Group,THRIFTY CA,22.14,Hired Transport,Vehicle Hire Charge,Thrify Ren,JPATERSON,4.43,192003,FD01,0100020889,Y
06/06/2019,Exeter Group,THRIFTY CA,51.28,Hired Transport,Vehicle Hire Charge,Thrify Ren,JPATERSON,10.26,192003,FD01,0100020889,Y
07/06/2019,Exeter Group,LAND REGIS,6.00,Consultation Fees,LAND REGISTRY,Government,JPATERSON,0.00,192003,JA30,0100020963,Y
08/06/2019,Exeter Group,LYRECO UK,48.84,Standard Equipment,BI-OFFICE PREMIUM ENAMEL W/BOARD 150X100,Stationery,NSOUTAR,9.77,192003,HA01,0100020786,Y
08/06/2019,Exeter Group,LYRECO UK,0.31,Printing/Stationery/Photocopy,BX12 LYRECO GRAPHITE PENCIL W/ERASER HB,Stationery,NSOUTAR,0.06,192003,JA01,0100020786,Y
08/06/2019,Exeter Group,LYRECO UK,1.68,Printing/Stationery/Photocopy,LYRECO REPO NOTES 76X76MM 100SHT YLLW,Stationery,NSOUTAR,0.34,192003,JA01,0100020786,Y
08/06/2019,Exeter Group,LYRECO UK,66.00,Printing/Stationery/Photocopy,RM500 LYRECO PAPER 90G A4 WH,Stationery,NSOUTAR,13.20,192003,JA01,0100020786,Y
11/06/2019,Exeter Group,LYRECO UK,9.36,Printing/Stationery/Photocopy,LYRECO RETRACT GEL INK PEN 0.7MM BLK,Stationery,NSOUTAR,1.87,192003,JA01,0100020789,Y
11/06/2019,Exeter Group,LAND REGIS,3.00,Consultation Fees,LAND REGISTRY,Government,JPATERSON,0.00,192003,JA30,0100020964,Y
13/06/2019,Exeter Group,KFC AMESBU,11.77,Catering/Refreshments,KFC AMESBURY,Fast Food,DCRIPPS,2.35,192003,FD76,0100020820,Y
14/06/2019,Exeter Group,THRIFTY CA,22.14,Hired Transport,Vehicle Hire Charge,Thrify Ren,JPATERSON,4.43,192003,FD01,0100020890,Y
14/06/2019,Exeter Group,THRIFTY CA,62.28,Hired Transport,Vehicle Hire Charge,Thrify Ren,JPATERSON,12.46,192003,FD01,0100020890,Y
14/06/2019,Exeter Group,THRIFTY CA,62.28,Hired Transport,Vehicle Hire Charge,Thrify Ren,JPATERSON,12.46,192003,FD01,0100020890,Y
14/06/2019,Exeter Group,THRIFTY CA,62.28,Hired Transport,Vehicle Hire Charge,Thrify Ren,JPATERSON,12.46,192003,FD01,0100020890,Y
20/06/2019,Exeter Group,POST OFFIC,102.50,Postages,POST OFFICE COUNTER,Postage St,JPATERSON,0.00,192003,JA05,0100020965,Y
21/06/2019,Exeter Group,LYRECO UK,9.72,Standard Equipment,NOTICE BOARD CLOTH 60X90 BLU,Stationery,NSOUTAR,1.94,192003,HA01,0100020807,Y
21/06/2019,Exeter Group,LYRECO UK,11.64,Printing/Stationery/Photocopy,LACQUER W/BOARD 60X90CM,Stationery,NSOUTAR,2.33,192003,JA01,0100020807,Y
21/06/2019,Exeter Group,LYRECO UK,0.27,Printing/Stationery/Photocopy,BX100 EXACOMPTA DRAWING PINS ASSTD COL,Stationery,NSOUTAR,0.06,192003,JA01,0100020807,Y
21/06/2019,Exeter Group,LYRECO UK,0.70,Printing/Stationery/Photocopy,BX5000 LYRECO 26/6 STAPLES,Stationery,NSOUTAR,0.14,192003,JA01,0100020807,Y
21/06/2019,Exeter Group,LYRECO UK,6.04,Printing/Stationery/Photocopy,RAPID FM14 FULL STRIP STAPLER BLK,Stationery,NSOUTAR,1.20,192003,JA01,0100020807,Y
21/06/2019,Exeter Group,LYRECO UK,3.00,Printing/Stationery/Photocopy,LYRECO DOC WLLT F/CAP/FOLIO 250G BLU,Stationery,NSOUTAR,0.60,192003,JA01,0100020807,Y
21/06/2019,Exeter Group,LYRECO UK,20.25,Printing/Stationery/Photocopy,BX12 SHARPIE CHINA MARKERS BLACK,Stationery,NSOUTAR,4.05,192003,JA01,0100020807,Y
06/06/2019,North Tawton,THRIFTY CA,22.14,Hired Transport,Vehicle Hire Charge,Thrify Ren,HWILKES,4.43,192003,FD01,0100020897,Y
06/06/2019,North Tawton,THRIFTY CA,22.14,Hired Transport,Vehicle Hire Charge,Thrify Ren,HWILKES,4.43,192003,FD01,0100020897,Y
06/06/2019,North Tawton,THRIFTY CA,44.28,Hired Transport,Vehicle Hire Charge,Thrify Ren,HWILKES,8.86,192003,FD01,0100020897,Y
06/06/2019,North Tawton,THRIFTY CA,22.14,Hired Transport,Vehicle Hire Charge,Thrify Ren,HWILKES,4.43,192003,FD01,0100020897,Y
06/06/2019,North Tawton,THRIFTY CA,22.14,Hired Transport,Vehicle Hire Charge,Thrify Ren,HWILKES,4.43,192003,FD01,0100020897,Y
14/06/2019,North Tawton,THRIFTY CA,22.14,Hired Transport,Vehicle Hire Charge,Thrify Ren,HWILKES,4.43,192003,FD01,0100020898,Y
14/06/2019,Okehampton,THRIFTY CA,22.14,Hired Transport,Vehicle Hire Charge,Thrify Ren,HWILKES,4.43,192003,FD01,0100020898,Y
14/06/2019,Danes Castle,THRIFTY CA,67.44,Hired Transport,Vehicle Hire Charge,Thrify Ren,JPATERSON,13.49,192003,FD01,0100020890,Y
14/06/2019,Danes Castle,THRIFTY CA,22.14,Hired Transport,Vehicle Hire Charge,Thrify Ren,JPATERSON,4.43,192003,FD01,0100020890,Y
06/06/2019,Bampton,THRIFTY CA,22.14,Hired Transport,Vehicle Hire Charge,Thrify Ren,GPATTERSON,4.43,192003,FD01,0100020899,Y
14/06/2019,Bampton,THRIFTY CA,44.28,Hired Transport,Vehicle Hire Charge,Thrify Ren,GPATTERSON,8.86,192003,FD01,0100020900,Y
14/06/2019,Bampton,THRIFTY CA,88.56,Hired Transport,Vehicle Hire Charge,Thrify Ren,GPATTERSON,17.72,192003,FD01,0100020900,Y
06/06/2019,Crediton,THRIFTY CA,22.14,Hired Transport,Vehicle Hire Charge,Thrify Ren,HWILKES,4.43,192003,FD01,0100020897,Y
06/06/2019,Crediton,THRIFTY CA,23.39,Hired Transport,Vehicle Hire Charge,Thrify Ren,HWILKES,4.68,192003,FD01,0100020897,Y
06/06/2019,Crediton,THRIFTY CA,23.39,Hired Transport,Vehicle Hire Charge,Thrify Ren,HWILKES,4.68,192003,FD01,0100020897,Y
06/06/2019,Cullompton,THRIFTY CA,22.14,Hired Transport,Vehicle Hire Charge,Thrify Ren,GPATTERSON,4.43,192003,FD01,0100020899,Y
06/06/2019,Cullompton,THRIFTY CA,44.28,Hired Transport,Vehicle Hire Charge,Thrify Ren,GPATTERSON,8.86,192003,FD01,0100020899,Y
06/06/2019,Cullompton,THRIFTY CA,151.74,Hired Transport,Vehicle Hire Charge,Thrify Ren,GPATTERSON,30.35,192003,FD01,0100020899,Y
06/06/2019,Cullompton,THRIFTY CA,22.14,Hired Transport,Vehicle Hire Charge,Thrify Ren,GPATTERSON,4.43,192003,FD01,0100020899,Y
06/06/2019,Cullompton,THRIFTY CA,66.42,Hired Transport,Vehicle Hire Charge,Thrify Ren,GPATTERSON,13.29,192003,FD01,0100020899,Y
14/06/2019,Cullompton,THRIFTY CA,111.72,Hired Transport,Vehicle Hire Charge,Thrify Ren,GPATTERSON,22.35,192003,FD01,0100020900,Y
14/06/2019,Cullompton,THRIFTY CA,50.58,Hired Transport,Vehicle Hire Charge,Thrify Ren,GPATTERSON,10.12,192003,FD01,0100020900,Y
06/06/2019,Tiverton,THRIFTY CA,44.28,Hired Transport,Vehicle Hire Charge,Thrify Ren,GPATTERSON,8.86,192003,FD01,0100020899,Y
26/06/2019,Tiverton,XMA LTD,28.16,Print Consumables,HP 953XL HIGH YIELD BLACK ORIGINAL I,Programmin,NSOUTAR,5.63,192003,JA02,0100020833,Y
26/06/2019,Tiverton,XMA LTD,19.18,Print Consumables,HP 953XL HIGH YIELD CYAN ORIGINAL IN,Programmin,NSOUTAR,3.84,192003,JA02,0100020833,Y
26/06/2019,Tiverton,XMA LTD,19.18,Print Consumables,HP 953XL HIGH YIELD MAGENTA ORIGINAL,Programmin,NSOUTAR,3.84,192003,JA02,0100020833,Y
26/06/2019,Tiverton,XMA LTD,19.18,Print Consumables,HP 953XL HIGH YIELD YELLOW ORIGINAL,Programmin,NSOUTAR,3.84,192003,JA02,0100020833,Y
26/06/2019,Middlemoor Fire Station,IKEA LTD 5,22.50,Cleaning/Kitchen Equipment,IKEA LTD 548 EXETER EXPRE,Furniture,SWALTERS,4.50,192003,HA03,0100020691,Y
03/06/2019,Exmouth,WWW.NISBET,27.59,Cleaning/Kitchen Equipment,WWW.NISBETS.COM,Catalogue,SWALTERS,0.00,192003,HA03,0100020687,Y
06/06/2019,Exmouth,THE RANGE,7.49,Standard Equipment,THE RANGE,Department,SWALTERS,0.00,192003,HA01,0100020689,Y
24/06/2019,Exmouth,THE RANGE,11.97,Standard Equipment,THE RANGE,Department,SWALTERS,0.00,192003,HA01,0100020690,Y
06/06/2019,Axminster,THRIFTY CA,20.00,Fuel (Petrol Etc),Vehicle Hire Charge,Thrify Ren,JPATERSON,4.00,192003,FC01,0100020889,Y
06/06/2019,Axminster,THRIFTY CA,22.14,Hired Transport,Vehicle Hire Charge,Thrify Ren,JPATERSON,4.43,192003,FD01,0100020889,Y
06/06/2019,Axminster,THRIFTY CA,22.14,Hired Transport,Vehicle Hire Charge,Thrify Ren,JPATERSON,4.43,192003,FD01,0100020889,Y
06/06/2019,Axminster,THRIFTY CA,22.14,Hired Transport,Vehicle Hire Charge,Thrify Ren,JPATERSON,4.43,192003,FD01,0100020889,Y
06/06/2019,Axminster,THRIFTY CA,22.14,Hired Transport,Vehicle Hire Charge,Thrify Ren,JPATERSON,4.43,192003,FD01,0100020889,Y
06/06/2019,Axminster,THRIFTY CA,22.14,Hired Transport,Vehicle Hire Charge,Thrify Ren,JPATERSON,4.43,192003,FD01,0100020889,Y
06/06/2019,Axminster,THRIFTY CA,50.58,Hired Transport,Vehicle Hire Charge,Thrify Ren,JPATERSON,10.12,192003,FD01,0100020889,Y
06/06/2019,Axminster,THRIFTY CA,22.14,Hired Transport,Vehicle Hire Charge,Thrify Ren,JPATERSON,4.43,192003,FD01,0100020889,Y
06/06/2019,Axminster,THRIFTY CA,22.14,Hired Transport,Vehicle Hire Charge,Thrify Ren,JPATERSON,4.43,192003,FD01,0100020889,Y
06/06/2019,Axminster,THRIFTY CA,22.14,Hired Transport,Vehicle Hire Charge,Thrify Ren,JPATERSON,4.43,192003,FD01,0100020889,Y
06/06/2019,Colyton,THRIFTY CA,84.30,Hired Transport,Vehicle Hire Charge,Thrify Ren,JPATERSON,16.86,192003,FD01,0100020889,Y
06/06/2019,Colyton,THRIFTY CA,22.14,Hired Transport,Vehicle Hire Charge,Thrify Ren,JPATERSON,4.43,192003,FD01,0100020889,Y
06/06/2019,Seaton,THRIFTY CA,44.28,Hired Transport,Vehicle Hire Charge,Thrify Ren,JPATERSON,8.86,192003,FD01,0100020889,Y
14/06/2019,Seaton,THRIFTY CA,22.14,Hired Transport,Vehicle Hire Charge,Thrify Ren,JPATERSON,4.43,192003,FD01,0100020890,Y
04/06/2019,Fire Control,THE HERITA,10.20,Hotel Booking,THE HERITAGE HOTEL,"Hotels, Mo",LBLACKBURN,0.00,192003,FD77,0100020993,Y
04/06/2019,Fire Control,LYRECO UK,2.37,Printing/Stationery/Photocopy,BX100 LYRECO SCREEN WIPES,Stationery,NSOUTAR,0.48,192003,JA01,0100020771,Y
14/06/2019,Fire Control,IKEA LTD 5,14.00,Cleaning/Kitchen Equipment,IKEA LTD 548 EXETER MAIN,Furniture,LBLACKBURN,0.00,192003,HA03,0100020994,Y
25/06/2019,Fire Control,LYRECO UK,2.10,Printing/Stationery/Photocopy,LYRECO BUDGET PAD GLUED A4RUL 4H 56G 80S,Stationery,NSOUTAR,0.42,192003,JA01,0100020812,Y
06/06/2019,Response Policy & Specialist C,LUL TICKET,13.10,Rail Fares - Uniformed,LUL TICKET MACHINE,Passenger,BWALKER,0.00,192003,FD65,0100021038,Y
06/06/2019,Response Policy & Specialist C,CAFFE NERO,6.10,Catering/Refreshments,CAFFE NERO 40 PORTCULLIS,Fast Food,BWALKER,0.00,192003,FD76,0100021039,Y
11/06/2019,Response Policy & Specialist C,UNION JACK,17.95,Hotel Booking,UNION JACK CLUB,"Hotels, Mo",DMORRISS,0.00,192003,FD77,0100020823,Y
11/06/2019,Response Policy & Specialist C,Amazon.co.,42.99,Standard Equipment,Amazon.co.uk*M65II0364,Direct Sal,PGODWIN,0.00,192003,HA01,0100020740,Y
11/06/2019,Response Policy & Specialist C,WIFI: TRAV,6.00,ICT Application Services (Oth),WIFI: TRAVELODGE - WI,Computer S,DMORRISS,0.00,192003,HA22,0100020821,Y
12/06/2019,Response Policy & Specialist C,LUL TICKET,5.90,Rail Fares - Uniformed,LUL TICKET MACHINE,Passenger,DCRIPPS,0.00,192003,FD65,0100020819,Y
12/06/2019,Response Policy & Specialist C,PORTENA,10.50,Catering/Refreshments,PORTENA,Restaurant,DCRIPPS,0.00,192003,FD76,0100020818,Y
12/06/2019,Response Policy & Specialist C,PORTENA,12.00,Catering/Refreshments,PORTENA,Restaurant,DMORRISS,0.00,192003,FD76,0100020822,Y
13/06/2019,Response Policy & Specialist C,LUL TICKET,11.80,Rail Fares - Uniformed,LUL TICKET MACHINE,Passenger,DMORRISS,0.00,192003,FD65,0100020824,Y
21/06/2019,Response Policy & Specialist C,WWW.TREEKI,77.40,Operational Equipment,WWW.TREEKIT.COM,Misc Indus,PGODWIN,15.48,192003,HC00,0100020741,Y
26/06/2019,Response Policy & Specialist C,AMZNMktpla,24.89,Catering/Refreshments,AMZNMktplace,Misc. Spec,JOLIVER,0.00,192003,FD76,0100020748,Y
27/06/2019,Response Policy & Specialist C,LYRECO UK,13.78,Printing/Stationery/Photocopy,MOUSE PAD GEL BLK,Stationery,NSOUTAR,2.76,192003,JA01,0100020817,Y
27/06/2019,Response Policy & Specialist C,LYRECO UK,1.75,Printing/Stationery/Photocopy,LYRECO 12-PART DIV PP 120MI A4+ ASST COL,Stationery,NSOUTAR,0.35,192003,JA01,0100020817,Y
18/06/2019,Research & Development,WICKES TAU,23.98,Standard Equipment,WICKES TAUNTON,Timber & B,GWALLIS,0.00,192003,HA01,0100021013,Y
04/06/2019,USAR Team,WELCOME BR,8.00,Subsistence Uniformed,WELCOME BREAK SEDGEMOO,Misc Food,JWORSLEY,0.00,192003,FD75,0100020856,Y
04/06/2019,USAR Team,MOTO FRANK,7.02,Catering/Refreshments,MOTO FRANKLEY N/E COST,Restaurant,JWORSLEY,0.00,192003,FD76,0100020857,Y
04/06/2019,USAR Team,COSTA COFF,16.45,Catering/Refreshments,COSTA COFFEE 43038750,Fast Food,RDELASALLE,0.00,192003,FD76,0100020921,Y
05/06/2019,USAR Team,ROADCHEF M,7.68,Catering/Refreshments,ROADCHEF M SERV UPAY L,Restaurant,JWORSLEY,0.00,192003,FD76,0100020858,Y
06/06/2019,USAR Team,HORSE & JO,28.08,Catering/Refreshments,HORSE & JOCKEY,Restaurant,THUTCHINGS,0.00,192003,FD76,0100020938,Y
06/06/2019,USAR Team,LYRECO UK,13.52,Printing/Stationery/Photocopy,PK100 LEITZ PUNCH POCKETS 90MI A4 CLEAR,Stationery,NSOUTAR,2.71,192003,JA01,0100020778,Y
07/06/2019,USAR Team,HORSE & JO,12.58,Catering/Refreshments,HORSE & JOCKEY,Restaurant,THUTCHINGS,0.00,192003,FD76,0100020939,Y
07/06/2019,USAR Team,RHUG LTD,42.80,Catering/Refreshments,RHUG LTD,Misc. Spec,RHARLING,0.00,192003,FD76,0100020977,Y
08/06/2019,USAR Team,CULLOMPTON,3.45,Catering/Refreshments,CULLOMPTON COSTA,Restaurant,RDELASALLE,0.00,192003,FD76,0100020922,Y
10/06/2019,USAR Team,LIDL GB SI,4.33,Acquisition Courses,LIDL GB SIDMOUTH,Grocery St,PWEST,0.38,192003,AE17,0100020744,Y
11/06/2019,USAR Team,AMAZON.CO.,53.44,Catering/Refreshments,AMAZON.CO.UK*M675C83S4 AM,Misc. Spec,RHARLING,0.00,192003,FD76,0100020980,Y
13/06/2019,USAR Team,WWW.WETROO,82.80,Unforseen Maintnce Mats Techn,WWW.WETROOMSDIRECT.CO.,Furniture,ACHAPLIN,0.00,192003,DA12,0100021015,Y
19/06/2019,USAR Team,WWW.LEISUR,44.97,Catering/Refreshments,WWW.LEISURE.ORDNANCE,Government,RHARLING,0.00,192003,FD76,0100020984,Y
19/06/2019,USAR Team,HONITON SF,11.70,Catering/Refreshments,HONITON SF CONNECT,Service St,RDELASALLE,0.00,192003,FD76,0100020923,Y
04/06/2019,USAR Dog,ZooPlus AG,34.16,USAR Dog Expenses,ZooPlus AG,"Pet Shops,",PWEST,6.83,192003,HA08,0100020743,Y
11/06/2019,USAR Dog,OSCARS HON,95.54,USAR Dog Expenses,OSCARS HONITON R/T CUR,"Pet Shops,",PWEST,19.11,192003,HA08,0100020745,Y
27/06/2019,Improvement,LYRECO UK,2.70,Printing/Stationery/Photocopy,LYR BUDGET 5P C/BOARD DIV A4 160G PASTL,Stationery,NSOUTAR,0.54,192003,JA01,0100020817,Y
03/06/2019,West Devon,XMA LTD,58.70,Print Consumables,OKI ML182/ELITE BLACK NYLON RIBBON,Programmin,NSOUTAR,11.74,192003,JA02,0100020826,Y
06/06/2019,West Devon,THRIFTY CA,391.61,Hired Transport,Vehicle Hire Charge,Thrify Ren,JTUCKER,35.28,192003,FD01,0100020884,Y
06/06/2019,West Devon,THRIFTY CA,391.61,Hired Transport,Vehicle Hire Charge,Thrify Ren,JTUCKER,35.28,192003,FD01,0100020884,Y
06/06/2019,West Devon,THRIFTY CA,103.80,Hired Transport,Car Hires,Thrify Ren,JOLEARY,20.76,192003,FD01,0100020901,Y
07/06/2019,West Devon,LYRECO UK,56.80,Standard Equipment,INTERSTUHL BASELINE PERM CHAIR CHARCOAL,Stationery,NSOUTAR,11.36,192003,HA01,0100020781,Y
10/06/2019,West Devon,WWW.NATION,88.49,Print Consumables,WWW.NATIONWIDEFRANKING,Misc Busin,JOLEARY,17.70,192003,JA02,0100020752,Y
14/06/2019,West Devon,THRIFTY CA,391.61,Hired Transport,Vehicle Hire Charge,Thrify Ren,JTUCKER,35.28,192003,FD01,0100020885,Y
14/06/2019,West Devon,THRIFTY CA,391.61,Hired Transport,Vehicle Hire Charge,Thrify Ren,JTUCKER,35.28,192003,FD01,0100020885,Y
14/06/2019,West Devon,THRIFTY CA,25.64,Hired Transport,Hire Car April 2019,Thrify Ren,JOLEARY,5.13,192003,FD01,0100020902,Y
20/06/2019,West Devon,LYRECO UK,14.26,Standard Equipment,DESK FAN 3-SPEED 12  UK PLUG,Stationery,NSOUTAR,2.85,192003,HA01,0100020800,Y
20/06/2019,West Devon,LYRECO UK,0.80,Printing/Stationery/Photocopy,LYRECO THINGS TO DO PAD,Stationery,NSOUTAR,0.16,192003,JA01,0100020800,Y
20/06/2019,West Devon,LYRECO UK,0.75,Printing/Stationery/Photocopy,PK5 POPPER WALLET FOOLSCAP CLEAR,Stationery,NSOUTAR,0.15,192003,JA01,0100020800,Y
20/06/2019,West Devon,LYRECO UK,2.93,Printing/Stationery/Photocopy,PK4 LUMOCOLOR 318 PERM OHP PEN F ASSTD,Stationery,NSOUTAR,0.58,192003,JA01,0100020800,Y
20/06/2019,West Devon,LYRECO UK,4.11,Printing/Stationery/Photocopy,PK 50 VISITOR BOOK REFILL SHEETS,Stationery,NSOUTAR,0.83,192003,JA01,0100020800,Y
25/06/2019,West Devon,LYRECO UK,4.69,Standard Equipment,ALBA EASY TIME ROUND WALL CLOCK BLK,Stationery,NSOUTAR,0.94,192003,HA01,0100020814,Y
25/06/2019,West Devon,LYRECO UK,13.72,Printing/Stationery/Photocopy,PK1000 LYRECO WDW ENV DL 80G S/S WH,Stationery,NSOUTAR,2.74,192003,JA01,0100020814,Y
06/06/2019,Camels Head,THRIFTY CA,369.80,Hired Transport,Car Hires - Camels Head,Thrify Ren,JOLEARY,73.97,192003,FD01,0100020901,Y
14/06/2019,Camels Head,THRIFTY CA,83.04,Hired Transport,Hire Car April 2019,Thrify Ren,JOLEARY,16.61,192003,FD01,0100020902,Y
06/06/2019,Crownhill,THRIFTY CA,101.16,Hired Transport,Car Hires - Crownhill,Thrify Ren,JOLEARY,20.23,192003,FD01,0100020901,Y
18/06/2019,Greenbank,WWW.NISBET,29.98,Standard Equipment,WWW.NISBETS.COM,Catalogue,JOLEARY,6.00,192003,HA01,0100020753,Y
18/06/2019,Greenbank,WWW.NISBET,1.90,Standard Equipment,WWW.NISBETS.COM,Catalogue,JOLEARY,0.38,192003,HA01,0100020754,Y
27/06/2019,Greenbank,TOOLSTATIO,20.25,Unforseen Maintnce Mats Techn,GREENBANK UFSMATERLTECH,Hardware S,ACHAPLIN,3.51,192003,DA12,0100021037,Y
06/06/2019,Plymstock,THRIFTY CA,44.28,Hired Transport,Car Hires - Plymstock,Thrify Ren,JOLEARY,8.86,192003,FD01,0100020901,Y
14/06/2019,Plymstock,THRIFTY CA,44.28,Hired Transport,Hire Car April 2019,Thrify Ren,JOLEARY,8.86,192003,FD01,0100020902,Y
06/06/2019,Kingsbridge,THRIFTY CA,71.67,Hired Transport,Car Hires - Kingsbridge,Thrify Ren,JOLEARY,14.34,192003,FD01,0100020901,Y
06/06/2019,Bere Alston,THRIFTY CA,27.39,Hired Transport,Car Hires - Bere Alston,Thrify Ren,JOLEARY,5.48,192003,FD01,0100020901,Y
06/06/2019,Ivybridge,THRIFTY CA,88.56,Hired Transport,Car Hires - Ivybridge,Thrify Ren,JOLEARY,17.72,192003,FD01,0100020901,Y
14/06/2019,Ivybridge,THRIFTY CA,124.70,Hired Transport,Hire Car April 2019,Thrify Ren,JOLEARY,24.94,192003,FD01,0100020902,Y
06/06/2019,Modbury,THRIFTY CA,44.28,Hired Transport,Car Hires - Modbury,Thrify Ren,JOLEARY,8.86,192003,FD01,0100020901,Y
06/06/2019,Princetown,THRIFTY CA,88.56,Hired Transport,Car Hires - Princetown,Thrify Ren,JOLEARY,17.72,192003,FD01,0100020901,Y
14/06/2019,Princetown,THRIFTY CA,50.58,Hired Transport,Hire Car April 2019,Thrify Ren,JOLEARY,10.12,192003,FD01,0100020902,Y
06/06/2019,Tavistock,THRIFTY CA,231.14,Hired Transport,Car Hires - Tavistock,Thrify Ren,JOLEARY,46.23,192003,FD01,0100020901,Y
14/06/2019,Tavistock,THRIFTY CA,22.14,Hired Transport,Hire Car April 2019,Thrify Ren,JOLEARY,4.43,192003,FD01,0100020902,Y
06/06/2019,Yelverton,THRIFTY CA,84.30,Hired Transport,Car Hires - Yelverton,Thrify Ren,JOLEARY,16.86,192003,FD01,0100020901,Y
14/06/2019,Yelverton,THRIFTY CA,22.14,Hired Transport,Hire Car April 2019,Thrify Ren,JOLEARY,4.43,192003,FD01,0100020902,Y
04/06/2019,South Devon,BOOKER LIM,41.70,Hospitality Other,BOOKER LIMITED PAIGNTON,Caterers,KCONNON,8.34,192003,JA21,0100020958,Y
05/06/2019,South Devon,LYRECO UK,2.00,Printing/Stationery/Photocopy,LYRECO WHITEBOARD MARKER B/TIP GREEN,Stationery,NSOUTAR,0.40,192003,JA01,0100020773,Y
05/06/2019,South Devon,LYRECO UK,2.10,Printing/Stationery/Photocopy,LYRECO WHITEBOARD MARKER B/TIP RED,Stationery,NSOUTAR,0.42,192003,JA01,0100020773,Y
05/06/2019,South Devon,LYRECO UK,2.10,Printing/Stationery/Photocopy,LYRECO WHITEBOARD MARKER B/TIP BLUE,Stationery,NSOUTAR,0.42,192003,JA01,0100020773,Y
05/06/2019,South Devon,LYRECO UK,1.80,Printing/Stationery/Photocopy,LYRECO WHITEBOARD MARKER B/TIP BLACK,Stationery,NSOUTAR,0.36,192003,JA01,0100020773,Y
05/06/2019,South Devon,LYRECO UK,2.80,Printing/Stationery/Photocopy,PK5 POPPER WALLET A5 BRIGHT ASST,Stationery,NSOUTAR,0.56,192003,JA01,0100020773,Y
05/06/2019,South Devon,LYRECO UK,8.64,Printing/Stationery/Photocopy,RM500 LYRECO PAPER A4 80G GREEN,Stationery,NSOUTAR,1.73,192003,JA01,0100020773,Y
13/06/2019,South Devon,XMA LTD,128.96,Print Consumables,78A BLACK LASERJET CONTRACT TON CART,Programmin,NSOUTAR,25.79,192003,JA02,0100020830,Y
22/06/2019,South Devon,LYRECO UK,9.54,Printing/Stationery/Photocopy,LYRECO 4HOLE PUNCH 15SHT BLACK,Stationery,NSOUTAR,1.90,192003,JA01,0100020809,Y
22/06/2019,South Devon,LYRECO UK,3.00,Printing/Stationery/Photocopy,LYRECO PREM GEL INK PEN W/GRIP 0.7MM BLU,Stationery,NSOUTAR,0.60,192003,JA01,0100020809,Y
22/06/2019,South Devon,LYRECO UK,1.92,Printing/Stationery/Photocopy,LYRECO RETRACT GEL INK PEN 0.7MM RED,Stationery,NSOUTAR,0.39,192003,JA01,0100020809,Y
22/06/2019,South Devon,LYRECO UK,23.18,Printing/Stationery/Photocopy,VALUE PK90+10FREE BIC CRISTAL MEDIUM BLK,Stationery,NSOUTAR,4.63,192003,JA01,0100020809,Y
22/06/2019,South Devon,LYRECO UK,11.62,Printing/Stationery/Photocopy,BX100 FELLOWES LAM POUCH A4 2X80MI GLOSS,Stationery,NSOUTAR,2.33,192003,JA01,0100020809,Y
26/06/2019,South Devon,BOOKER LIM,39.76,Hospitality Other,BOOKER LIMITED PAIGNTON,Caterers,MBOURNE,0.00,192003,JA21,0100020717,Y
06/06/2019,Torquay,TOOLSTATIO,20.77,Unforseen Maintnce Mats Techn,TOOLSTATION LTD,Hardware S,ACHAPLIN,4.16,192003,DA12,0100021027,Y
06/06/2019,Torquay,LIVING HEA,12.50,Unforseen Maintnce Mats Techn,LIVING HEAT LTD,"Paint, Var",ACHAPLIN,2.50,192003,DA12,0100021028,Y
06/06/2019,Torquay,THRIFTY CA,391.61,Hired Transport,Vehicle Hire Charge,Thrify Ren,JTUCKER,35.28,192003,FD01,0100020884,Y
14/06/2019,Torquay,THRIFTY CA,391.61,Hired Transport,Vehicle Hire Charge,Thrify Ren,JTUCKER,35.28,192003,FD01,0100020885,Y
06/06/2019,Paignton,THRIFTY CA,234.70,Hired Transport,Vehicle Hire Charge,Thrify Ren,MBOURNE,46.96,192003,FD01,0100020893,Y
13/06/2019,Paignton,Amazon.co.,53.32,Standard Equipment,Amazon.co.uk*M61S76JS4,Direct Sal,MBOURNE,10.67,192003,HA01,0100020715,Y
14/06/2019,Paignton,THRIFTY CA,156.00,Hired Transport,Vehicle Hire Charge,Thrify Ren,MBOURNE,31.21,192003,FD01,0100020894,Y
05/06/2019,Brixham,TOOLSTATIO,29.83,Planned Project Mats Tech,TOOLSTATION LTD,Hardware S,ACHAPLIN,0.00,192003,DA13,0100020951,Y
05/06/2019,Brixham,SCREWFIX P,16.66,Planned Project Mats Tech,SCREWFIX PLYMOUTH VALLEY,Timber & B,ACHAPLIN,3.33,192003,DA13,0100021026,Y
06/06/2019,Brixham,WESTERN PO,913.49,Planned Maint Proj Contractor,WESTERN POWER DISTRIBU,Utilities,ACHAPLIN,182.70,192003,DA05,0100020729,Y
06/06/2019,Brixham,THRIFTY CA,156.00,Hired Transport,Vehicle Hire Charge,Thrify Ren,MBOURNE,31.21,192003,FD01,0100020893,Y
12/06/2019,Brixham,TOOLSTATIO,17.54,Planned Project Mats Tech,TOOLSTATION LTD,Hardware S,ACHAPLIN,3.50,192003,DA13,0100021029,Y
14/06/2019,Brixham,EXETER WIN,25.13,Planned Project Mats Tech,EXETER WINDOW STORE,Trade Cont,ACHAPLIN,5.03,192003,DA13,0100020952,Y
14/06/2019,Brixham,THRIFTY CA,107.69,Hired Transport,Vehicle Hire Charge,Thrify Ren,MBOURNE,21.54,192003,FD01,0100020894,Y
17/06/2019,Brixham,LINDAB LTD,75.37,Planned Project Mats Tech,LINDAB LTD-EXETER,Air Cond.,ACHAPLIN,15.07,192003,DA13,0100020953,Y
17/06/2019,Brixham,INTER-LINE,94.87,Planned Project Mats Tech,INTER-LINE (SW) LTD,Timber & B,ACHAPLIN,18.98,192003,DA13,0100021030,Y
20/06/2019,Brixham,AUSTEN KNA,53.44,Planned Project Mats Tech,AUSTEN KNAPMAN LIM,Timber & B,ACHAPLIN,10.69,192003,DA13,0100021034,Y
24/06/2019,Brixham,INTER-LINE,11.22,Planned Project Mats Tech,INTER-LINE (SW) LTD,Timber & B,ACHAPLIN,2.24,192003,DA13,0100021035,Y
25/06/2019,Brixham,TOOLSTATIO,19.19,Planned Project Mats Tech,TOOLSTATION LTD,Hardware S,ACHAPLIN,3.84,192003,DA13,0100021036,Y
26/06/2019,Brixham,INTER-LINE,3.55,Planned Project Mats Tech,INTER-LINE (SW) LTD,Timber & B,ACHAPLIN,0.00,192003,DA13,0100020954,Y
27/06/2019,Brixham,TOOLSTATIO,52.56,Planned Project Mats Tech,TOOLSTATION LTD,Hardware S,ACHAPLIN,11.04,192003,DA13,0100021037,Y
06/06/2019,Ashburton,THRIFTY CA,84.30,Hired Transport,Vehicle Hire Charge,Thrify Ren,MBOURNE,16.86,192003,FD01,0100020893,Y
14/06/2019,Ashburton,THRIFTY CA,44.28,Hired Transport,Vehicle Hire Charge,Thrify Ren,MBOURNE,8.86,192003,FD01,0100020894,Y
06/06/2019,Bovey Tracey,THRIFTY CA,106.44,Hired Transport,Vehicle Hire Charge,Thrify Ren,MBOURNE,21.29,192003,FD01,0100020893,Y
06/06/2019,Buckfastleigh,THRIFTY CA,52.10,Hired Transport,Vehicle Hire Charge,Thrify Ren,MBOURNE,10.42,192003,FD01,0100020893,Y
14/06/2019,Buckfastleigh,THRIFTY CA,22.14,Hired Transport,Vehicle Hire Charge,Thrify Ren,MBOURNE,4.43,192003,FD01,0100020894,Y
06/06/2019,Chagford,THRIFTY CA,22.14,Hired Transport,Vehicle Hire Charge,Thrify Ren,MBOURNE,4.43,192003,FD01,0100020893,Y
06/06/2019,Dartmouth,THRIFTY CA,154.98,Hired Transport,Vehicle Hire Charge,Thrify Ren,MBOURNE,31.01,192003,FD01,0100020893,Y
06/06/2019,Dawlish,THRIFTY CA,132.84,Hired Transport,Vehicle Hire Charge,Thrify Ren,MBOURNE,26.58,192003,FD01,0100020893,Y
14/06/2019,Dawlish,THRIFTY CA,133.86,Hired Transport,Vehicle Hire Charge,Thrify Ren,MBOURNE,26.78,192003,FD01,0100020894,Y
06/06/2019,Moretonhampstead,THRIFTY CA,94.86,Hired Transport,Vehicle Hire Charge,Thrify Ren,MBOURNE,18.98,192003,FD01,0100020893,Y
06/06/2019,Newton Abbot,THRIFTY CA,249.26,Hired Transport,Vehicle Hire Charge,Thrify Ren,MBOURNE,49.86,192003,FD01,0100020893,Y
14/06/2019,Newton Abbot,THRIFTY CA,107.67,Hired Transport,Vehicle Hire Charge,Thrify Ren,MBOURNE,21.54,192003,FD01,0100020894,Y
06/06/2019,Teignmouth,THRIFTY CA,-25.14,Hired Transport,Vehicle Hire Credit Refund,Thrify Ren,MBOURNE,-5.03,192003,FD01,0100020893,Y
06/06/2019,Teignmouth,THRIFTY CA,399.84,Hired Transport,Vehicle Hire Charge,Thrify Ren,MBOURNE,79.99,192003,FD01,0100020893,Y
06/06/2019,Totnes,THRIFTY CA,66.42,Hired Transport,Vehicle Hire Charge,Thrify Ren,MBOURNE,13.29,192003,FD01,0100020893,Y
05/06/2019,Taunton Group,CANFORD AU,60.30,Standard Equipment,CANFORD AUDIO PLC,Electronic,CPARKER,0.00,192003,HA01,0100020718,Y
06/06/2019,Taunton Group,THRIFTY CA,43.92,Hired Transport,Car Hire,Thrify Ren,BTESTER,9.22,192003,FD01,0100020891,Y
06/06/2019,Taunton Group,THRIFTY CA,87.83,Hired Transport,Car Hire,Thrify Ren,BTESTER,18.45,192003,FD01,0100020891,Y
12/06/2019,Taunton Group,SQ *CRAWFO,74.99,Standard Equipment,SQ *CRAWFORDS ELECTRICAL,Profession,CPARKER,0.00,192003,HA01,0100020720,Y
12/06/2019,Taunton Group,XMA LTD,45.85,Print Consumables,HP 950XL HIGH YIELD BLACK ORIGINAL I,Programmin,NSOUTAR,9.17,192003,JA02,0100020828,Y
12/06/2019,Taunton Group,XMA LTD,40.75,Print Consumables,HP 951XL HIGH YIELD MAGENTA ORIGINAL,Programmin,NSOUTAR,8.15,192003,JA02,0100020828,Y
12/06/2019,Taunton Group,XMA LTD,40.75,Print Consumables,HP 951XL HIGH YIELD YELLOW ORIGINAL,Programmin,NSOUTAR,8.15,192003,JA02,0100020828,Y
12/06/2019,Taunton Group,XMA LTD,40.75,Print Consumables,HP 951XL HIGH YIELD CYAN ORIGINAL IN,Programmin,NSOUTAR,8.15,192003,JA02,0100020828,Y
12/06/2019,Taunton Group,XMA LTD,38.36,Print Consumables,HP 953XL HIGH YIELD CYAN ORIGINAL IN,Programmin,NSOUTAR,7.67,192003,JA02,0100020828,Y
12/06/2019,Taunton Group,XMA LTD,56.32,Print Consumables,HP 953XL HIGH YIELD BLACK ORIGINAL I,Programmin,NSOUTAR,11.26,192003,JA02,0100020828,Y
12/06/2019,Taunton Group,XMA LTD,38.36,Print Consumables,HP 953XL HIGH YIELD YELLOW ORIGINAL,Programmin,NSOUTAR,7.67,192003,JA02,0100020828,Y
12/06/2019,Taunton Group,XMA LTD,38.36,Print Consumables,HP 953XL HIGH YIELD MAGENTA ORIGINAL,Programmin,NSOUTAR,7.67,192003,JA02,0100020828,Y
12/06/2019,Taunton Group,XMA LTD,100.28,Print Consumables,HP 78A BLACK DUAL PACK,Programmin,NSOUTAR,20.06,192003,JA02,0100020828,Y
13/06/2019,Taunton Group,LYRECO UK,4.00,Printing/Stationery/Photocopy,BX100 LYRECO LAM POUCH 2X75MI A4 GLOSS,Stationery,NSOUTAR,0.80,192003,JA01,0100020799,Y
13/06/2019,Taunton Group,LYRECO UK,8.76,Printing/Stationery/Photocopy,PK4 LUMOCOLOR 316 N/PERM OHP PEN F ASSTD,Stationery,NSOUTAR,1.75,192003,JA01,0100020799,Y
13/06/2019,Taunton Group,LYRECO UK,1.42,Printing/Stationery/Photocopy,LYRECO 4O-RING BINDER PP A4 25MM RED,Stationery,NSOUTAR,0.28,192003,JA01,0100020799,Y
13/06/2019,Taunton Group,LYRECO UK,3.36,Printing/Stationery/Photocopy,PK6 LYRECO CLEAR TAPE 25MMX66M,Stationery,NSOUTAR,0.68,192003,JA01,0100020799,Y
13/06/2019,Taunton Group,LYRECO UK,3.00,Printing/Stationery/Photocopy,MICRON B/POINT PEN MED BLU,Stationery,NSOUTAR,0.60,192003,JA01,0100020799,Y
13/06/2019,Taunton Group,LYRECO UK,67.90,Printing/Stationery/Photocopy,RM500 LYRECO BUDGET PAPER A4 80G WH,Stationery,NSOUTAR,13.58,192003,JA01,0100020799,Y
13/06/2019,Taunton Group,LYRECO UK,3.84,Printing/Stationery/Photocopy,LYRECO RETRACTABLE B/POINT PEN MED BLK,Stationery,NSOUTAR,0.76,192003,JA01,0100020799,Y
13/06/2019,Taunton Group,LYRECO UK,4.50,Printing/Stationery/Photocopy,MICRON B/POINT PEN MED BLK,Stationery,NSOUTAR,0.90,192003,JA01,0100020799,Y
13/06/2019,Taunton Group,LYRECO UK,20.25,Printing/Stationery/Photocopy,BX12 SHARPIE CHINA MARKERS BLACK,Stationery,NSOUTAR,4.05,192003,JA01,0100020799,Y
13/06/2019,Taunton Group,LYRECO UK,0.86,Printing/Stationery/Photocopy,LYRECO PREMIUM SYM SCISSORS 17CM,Stationery,NSOUTAR,0.18,192003,JA01,0100020799,Y
14/06/2019,Taunton Group,THRIFTY CA,87.83,Hired Transport,Car Hire,Thrify Ren,BTESTER,18.45,192003,FD01,0100020892,Y
17/06/2019,Taunton Group,SP * WINDO,5.99,Standard Equipment,SP * WINDOW FILM STORE,Computer S,CPARKER,0.00,192003,HA01,0100020722,Y
19/06/2019,Taunton Group,WWW.NISBET,52.71,Standard Equipment,WWW.NISBETS.COM,Catalogue,CPARKER,0.00,192003,HA01,0100020723,Y
06/06/2019,Taunton,THRIFTY CA,151.07,Hired Transport,Car Hire,Thrify Ren,BTESTER,31.73,192003,FD01,0100020891,Y
14/06/2019,Taunton,THRIFTY CA,43.92,Hired Transport,Car Hire,Thrify Ren,BTESTER,9.22,192003,FD01,0100020892,Y
06/06/2019,Minehead,THRIFTY CA,115.11,Hired Transport,Car Hire,Thrify Ren,BTESTER,24.17,192003,FD01,0100020891,Y
14/06/2019,Minehead,THRIFTY CA,115.11,Hired Transport,Car Hire,Thrify Ren,BTESTER,24.17,192003,FD01,0100020892,Y
14/06/2019,Porlock,THRIFTY CA,81.78,Hired Transport,Car Hire,Thrify Ren,BTESTER,17.17,192003,FD01,0100020892,Y
06/06/2019,Wellington,THRIFTY CA,89.68,Hired Transport,Car Hire,Thrify Ren,BTESTER,18.83,192003,FD01,0100020891,Y
14/06/2019,Wellington,THRIFTY CA,139.01,Hired Transport,Car Hire,Thrify Ren,BTESTER,29.19,192003,FD01,0100020892,Y
06/06/2019,Wiveliscombe,THRIFTY CA,131.75,Hired Transport,Car Hire,Thrify Ren,BTESTER,27.67,192003,FD01,0100020891,Y
06/06/2019,Bridgwater,THRIFTY CA,233.08,Hired Transport,Car Hire,Thrify Ren,BTESTER,48.95,192003,FD01,0100020891,Y
06/06/2019,Bridgwater,THRIFTY CA,210.92,Hired Transport,Car Hire,Thrify Ren,BTESTER,44.29,192003,FD01,0100020891,Y
14/06/2019,Bridgwater,THRIFTY CA,48.12,Hired Transport,Car Hire,Thrify Ren,BTESTER,10.10,192003,FD01,0100020892,Y
14/06/2019,Bridgwater,THRIFTY CA,21.96,Hired Transport,Car Hire,Thrify Ren,BTESTER,4.61,192003,FD01,0100020892,Y
25/06/2019,Bridgwater,SPARKWORLD,291.31,Standard Equipment,SPARKWORLD LTD,Household,CPARKER,0.00,192003,HA01,0100020727,Y
06/06/2019,Burnham-on-Sea,THRIFTY CA,43.92,Hired Transport,Car Hire,Thrify Ren,BTESTER,9.22,192003,FD01,0100020891,Y
14/06/2019,Burnham-on-Sea,THRIFTY CA,21.96,Hired Transport,Car Hire,Thrify Ren,BTESTER,4.61,192003,FD01,0100020892,Y
06/06/2019,Nether Stowey,THRIFTY CA,67.12,Hired Transport,Car Hire,Thrify Ren,BTESTER,14.09,192003,FD01,0100020891,Y
14/06/2019,Nether Stowey,THRIFTY CA,204.88,Hired Transport,Car Hire,Thrify Ren,BTESTER,43.03,192003,FD01,0100020892,Y
06/06/2019,Williton,THRIFTY CA,227.84,Hired Transport,Car Hire,Thrify Ren,BTESTER,47.85,192003,FD01,0100020891,Y
14/06/2019,Williton,THRIFTY CA,49.23,Hired Transport,Car Hire,Thrify Ren,BTESTER,10.34,192003,FD01,0100020892,Y
06/06/2019,Cheddar Fire Station,THRIFTY CA,145.23,Hired Transport,Car Hire,Thrify Ren,BTESTER,30.50,192003,FD01,0100020891,Y
14/06/2019,Cheddar Fire Station,THRIFTY CA,211.54,Hired Transport,Car Hire,Thrify Ren,BTESTER,44.42,192003,FD01,0100020892,Y
06/06/2019,Yeovil Group,LAND REGIS,6.00,Standard Equipment,LAND REGISTRY,Government,CPARKER,0.00,192003,HA01,0100020719,Y
12/06/2019,Yeovil Group,LAND REGIS,6.00,Standard Equipment,LAND REGISTRY,Government,CPARKER,0.00,192003,HA01,0100020721,Y
13/06/2019,Yeovil Group,LYRECO UK,37.20,Standard Equipment,LACQUER W/BOARD 90X120CM,Stationery,NSOUTAR,7.44,192003,HA01,0100020796,Y
13/06/2019,Yeovil Group,LYRECO UK,4.54,Printing/Stationery/Photocopy,LYRECO WHITEBOARD STARTER KIT,Stationery,NSOUTAR,0.91,192003,JA01,0100020796,Y
13/06/2019,Yeovil Group,LYRECO UK,1.20,Printing/Stationery/Photocopy,PK6 LYRECO MAGNETS ROUND 27MM ASSTD COL,Stationery,NSOUTAR,0.24,192003,JA01,0100020796,Y
19/06/2019,Yeovil Group,WWW.NISBET,47.94,Standard Equipment,WWW.NISBETS.COM,Catalogue,CPARKER,0.00,192003,HA01,0100020724,Y
20/06/2019,Yeovil Group,LYRECO UK,2.73,Printing/Stationery/Photocopy,BX50LYRECO LAM POUCH 2X180MI 63X98 GLOSS,Stationery,NSOUTAR,0.55,192003,JA01,0100020804,Y
20/06/2019,Yeovil Group,LYRECO UK,3.88,Printing/Stationery/Photocopy,PK100 LYRECO POCK A4 80MI ORGE PEEL,Stationery,NSOUTAR,0.78,192003,JA01,0100020804,Y
20/06/2019,Yeovil Group,LYRECO UK,2.72,Printing/Stationery/Photocopy,PK4 LYRECO W/BOARD MARKER C/TIP ASSTD,Stationery,NSOUTAR,0.54,192003,JA01,0100020804,Y
20/06/2019,Yeovil Group,LYRECO UK,2.92,Printing/Stationery/Photocopy,PK4 LYRECO W/BOARD MARKER B/TIP ASST COL,Stationery,NSOUTAR,0.58,192003,JA01,0100020804,Y
20/06/2019,Yeovil Group,LYRECO UK,29.10,Printing/Stationery/Photocopy,RM500 LYRECO BUDGET PAPER A4 80G WH,Stationery,NSOUTAR,5.82,192003,JA01,0100020804,Y
21/06/2019,Yeovil Group,LAND REGIS,6.00,Standard Equipment,LAND REGISTRY,Government,CPARKER,0.00,192003,HA01,0100020725,Y
21/06/2019,Yeovil Group,LAND REGIS,6.00,Standard Equipment,LAND REGISTRY,Government,CPARKER,0.00,192003,HA01,0100020726,Y
06/06/2019,Community Initiatives,THRIFTY CA,43.92,Hired Transport,Car Hire,Thrify Ren,BTESTER,9.22,192003,FD01,0100020891,Y
19/06/2019,Community Initiatives,ARGOS LTD,11.67,Standard Equipment,ARGOS LTD,Discount S,PPICTON,2.33,192003,HA01,0100021050,Y
06/06/2019,Yeovil,THRIFTY CA,196.07,Hired Transport,Car Hire,Thrify Ren,BTESTER,41.18,192003,FD01,0100020891,Y
11/06/2019,Yeovil,CRS BUILDI,68.39,Unforseen Maintnce Mats Techn,CRS BUILDING BS SUP LTD,Timber & B,ACHAPLIN,13.67,192003,DA12,0100020837,Y
12/06/2019,Yeovil,CRS BUILDI,26.10,Unforseen Maintnce Mats Techn,CRS BUILDING BS SUP LTD,Timber & B,ACHAPLIN,5.22,192003,DA12,0100020838,Y
06/06/2019,Chard,THRIFTY CA,43.92,Hired Transport,Car Hire,Thrify Ren,BTESTER,9.22,192003,FD01,0100020891,Y
06/06/2019,Crewkerne,THRIFTY CA,65.88,Hired Transport,Car Hire,Thrify Ren,BTESTER,13.83,192003,FD01,0100020891,Y
14/06/2019,Crewkerne,THRIFTY CA,43.92,Hired Transport,Car Hire,Thrify Ren,BTESTER,9.22,192003,FD01,0100020892,Y
17/06/2019,Crewkerne,SP * IDASS,17.50,Unforseen Maintnce Mats Techn,SP * IDASS FITNESS,Computer S,ACHAPLIN,3.50,192003,DA12,0100021017,Y
06/06/2019,Ilminster,THRIFTY CA,21.96,Hired Transport,Car Hire,Thrify Ren,BTESTER,4.61,192003,FD01,0100020891,Y
14/06/2019,Ilminster,THRIFTY CA,21.96,Hired Transport,Car Hire,Thrify Ren,BTESTER,4.61,192003,FD01,0100020892,Y
06/06/2019,Martock,THRIFTY CA,43.92,Hired Transport,Car Hire,Thrify Ren,BTESTER,9.22,192003,FD01,0100020891,Y
06/06/2019,Somerton,THRIFTY CA,109.79,Hired Transport,Car Hire,Thrify Ren,BTESTER,23.06,192003,FD01,0100020891,Y
14/06/2019,Somerton,THRIFTY CA,37.93,Hired Transport,Car Hire,Thrify Ren,BTESTER,7.96,192003,FD01,0100020892,Y
03/06/2019,Glastonbury Festival,COPYRITE,37.50,Standard Equipment,COPYRITE,Publishing,PPICTON,7.50,192003,HA01,0100021045,Y
11/06/2019,Glastonbury Festival,TENTSPARES,49.03,Standard Equipment,TENTSPARESLTD,Sporting G,PPICTON,9.81,192003,HA01,0100021046,Y
17/06/2019,Glastonbury Festival,GO OUTDOOR,66.88,Standard Equipment,GO OUTDOORS,Sporting G,PPICTON,13.13,192003,HA01,0100021047,Y
19/06/2019,Glastonbury Festival,TESCO STOR,17.60,Standard Equipment,TESCO STORES 5438,Grocery St,PPICTON,3.50,192003,HA01,0100021048,Y
19/06/2019,Glastonbury Festival,ARGOS LTD,13.33,Standard Equipment,ARGOS LTD,Discount S,PPICTON,2.67,192003,HA01,0100021049,Y
22/06/2019,Glastonbury Festival,ARGOS LTD,58.33,Standard Equipment,ARGOS LTD,Discount S,PPICTON,11.67,192003,HA01,0100021051,Y
24/06/2019,Glastonbury Festival,TESCO STOR,59.14,Subsistence Uniformed,TESCO STORES 5438,Grocery St,PPICTON,0.00,192003,FD75,0100021052,Y
24/06/2019,Glastonbury Festival,SCREWFIX S,31.62,Standard Equipment,SCREWFIX SHEPTON MALLET,Timber & B,PPICTON,6.32,192003,HA01,0100021053,Y
24/06/2019,Glastonbury Festival,ARGOS LTD,249.99,Standard Equipment,ARGOS LTD,Discount S,PPICTON,50.00,192003,HA01,0100021054,Y
25/06/2019,Glastonbury Festival,TESCO STOR,24.80,Subsistence Uniformed,TESCO STORES 5438,Grocery St,PPICTON,0.00,192003,FD75,0100021055,Y
27/06/2019,Glastonbury Festival,TESCO STOR,18.10,Subsistence Uniformed,TESCO STORES 5438,Grocery St,PPICTON,0.00,192003,FD75,0100021056,Y
06/06/2019,Glastonbury Fire station,THRIFTY CA,87.83,Hired Transport,Car Hire,Thrify Ren,BTESTER,18.45,192003,FD01,0100020891,Y
14/06/2019,Glastonbury Fire station,THRIFTY CA,107.93,Hired Transport,Car Hire,Thrify Ren,BTESTER,22.67,192003,FD01,0100020892,Y
14/06/2019,Castle Cary,THRIFTY CA,105.56,Hired Transport,Car Hire,Thrify Ren,BTESTER,22.17,192003,FD01,0100020892,Y
06/06/2019,Frome,THRIFTY CA,140.35,Hired Transport,Car Hire,Thrify Ren,BTESTER,29.47,192003,FD01,0100020891,Y
14/06/2019,Frome,THRIFTY CA,180.52,Hired Transport,Car Hire,Thrify Ren,BTESTER,37.91,192003,FD01,0100020892,Y
14/06/2019,Shepton Mallet,THRIFTY CA,92.81,Hired Transport,Car Hire,Thrify Ren,BTESTER,19.49,192003,FD01,0100020892,Y
06/06/2019,Wells,THRIFTY CA,484.34,Hired Transport,Car Hire,Thrify Ren,BTESTER,101.71,192003,FD01,0100020891,Y
14/06/2019,Wells,THRIFTY CA,96.96,Hired Transport,Car Hire,Thrify Ren,BTESTER,20.36,192003,FD01,0100020892,Y
06/06/2019,Wincanton,THRIFTY CA,100.32,Hired Transport,Car Hire,Thrify Ren,BTESTER,21.07,192003,FD01,0100020891,Y
18/06/2019,Wincanton,CRS BUILDI,17.57,Planned Project Mats Tech,CRS BUILDING BS SUP LTD,Timber & B,ACHAPLIN,3.51,192003,DA13,0100020839,Y
19/06/2019,Wincanton,TP WINCANT,9.08,Planned Project Mats Tech,4TRADE MASKING TAPE 72MMX50M,Timber & B,ACHAPLIN,1.82,192003,DA13,0100020840,Y
19/06/2019,Wincanton,TP WINCANT,10.50,Planned Project Mats Tech,4TRADE LINE MARKING PAINT WHITE 750ML,Timber & B,ACHAPLIN,2.10,192003,DA13,0100020840,Y
19/06/2019,Wincanton,TP WINCANT,5.92,Planned Project Mats Tech,EVO-STIK ADHESIVE CLEANER 250ML,Timber & B,ACHAPLIN,1.18,192003,DA13,0100020840,Y
21/06/2019,Wincanton,B & Q 1049,2.49,Planned Project Mats Tech,10X80RNGBLT,Timber & B,ACHAPLIN,0.49,192003,DA13,0100020841,Y
21/06/2019,Wincanton,B & Q 1049,2.49,Planned Project Mats Tech,10X80RNGBLT,Timber & B,ACHAPLIN,0.49,192003,DA13,0100020841,Y
21/06/2019,Wincanton,B & Q 1049,7.52,Planned Project Mats Tech,80MM1WHLPLLY,Timber & B,ACHAPLIN,1.50,192003,DA13,0100020841,Y
21/06/2019,Wincanton,B & Q 1049,7.52,Planned Project Mats Tech,80MM1WHLPLLY,Timber & B,ACHAPLIN,1.50,192003,DA13,0100020841,Y
25/06/2019,Wincanton,WICKES EXE,20.32,Planned Project Mats Tech,WICKES EXETER,Timber & B,ACHAPLIN,4.06,192003,DA13,0100020842,Y
26/06/2019,Wincanton,TP WINCANT,6.43,Planned Project Mats Tech,KD REGULARISED TREATED 47X50MMX4.8M IMP,Timber & B,ACHAPLIN,1.29,192003,DA13,0100020843,Y
26/06/2019,Wincanton,KELLAWAY W,9.28,Planned Project Mats Tech,KELLAWAY WINCANTON,Timber & B,ACHAPLIN,1.85,192003,DA13,0100020844,Y
01/06/2019,Organisational Dev Leadership,LYRECO UK,3.40,Printing/Stationery/Photocopy,LYRECO PERMANENT MARKER C/TIP BLACK,Stationery,NSOUTAR,0.68,192003,JA01,0100020767,Y
01/06/2019,Organisational Dev Leadership,LYRECO UK,8.54,Printing/Stationery/Photocopy,WHITEFURZE ALLSTORE BOX PP 51L CLEAR,Stationery,NSOUTAR,1.71,192003,JA01,0100020767,Y
03/06/2019,Organisational Dev Leadership,WM MORRISO,10.75,Catering/Refreshments,WM MORRISONS STORE,Grocery St,JMILLER,0.00,192003,FD76,0100020865,Y
04/06/2019,Organisational Dev Leadership,TESCO STOR,10.05,Catering/Refreshments,TESCO STORES 5319,Grocery St,JMILLER,0.00,192003,FD76,0100020866,Y
04/06/2019,Organisational Dev Leadership,WAITROSE 2,20.20,Catering/Refreshments,WAITROSE 234,Grocery St,JMILLER,0.00,192003,FD76,0100020867,Y
04/06/2019,Organisational Dev Leadership,WAITROSE 2,42.84,Catering/Refreshments,WAITROSE 234,Grocery St,JMILLER,0.00,192003,FD76,0100020868,Y
22/06/2019,Organisational Dev Leadership,Amazon.co.,6.47,Standard Equipment,Amazon.co.uk*M61SC8XS4,Direct Sal,JDIXON,1.30,192003,HA01,0100020990,Y
22/06/2019,Organisational Dev Leadership,AMZNMktpla,9.10,Printing/Stationery/Photocopy,AMZNMktplace,Misc. Spec,JDIXON,0.00,192003,JA01,0100020989,Y
24/06/2019,Organisational Dev Leadership,AMZNMktpla,36.39,Workwear,AMZNMktplace,Misc. Spec,JDIXON,0.00,192003,HG03,0100020991,Y
24/06/2019,Organisational Dev Leadership,AMZNMktpla,14.99,Printing/Stationery/Photocopy,AMZNMktplace,Misc. Spec,JDIXON,0.00,192003,JA01,0100020992,Y
27/06/2019,Organisational Dev Leadership,TESCO STOR,24.30,Catering/Refreshments,TESCO STORES 5438,Grocery St,JMILLER,0.00,192003,FD76,0100020869,Y
05/06/2019,Organisational Safety Assuranc,Amazon.co.,24.99,Standard Equipment,Amazon.co.uk*M69569FY4,Direct Sal,MANDREWS,5.00,192003,HA01,0100020888,Y
05/06/2019,Organisational Safety Assuranc,LYRECO UK,0.68,Printing/Stationery/Photocopy,PK4 LYRECO W/BOARD MARKER C/TIP ASSTD,Stationery,NSOUTAR,0.14,192003,JA01,0100020774,Y
05/06/2019,Organisational Safety Assuranc,LYRECO UK,0.73,Printing/Stationery/Photocopy,PK4 LYRECO W/BOARD MARKER B/TIP ASST COL,Stationery,NSOUTAR,0.14,192003,JA01,0100020774,Y
05/06/2019,Organisational Safety Assuranc,LYRECO UK,4.00,Printing/Stationery/Photocopy,LYRECO HARD BACK TWIN WIRE NOTEBOOK A4,Stationery,NSOUTAR,0.80,192003,JA01,0100020774,Y
05/06/2019,Organisational Safety Assuranc,LYRECO UK,1.12,Printing/Stationery/Photocopy,BX100 LYRECO PRE-SATURATED WIPES,Stationery,NSOUTAR,0.23,192003,JA01,0100020774,Y
05/06/2019,Organisational Safety Assuranc,LYRECO UK,2.01,Printing/Stationery/Photocopy,LYRECO WHITEBOARD CLEANING FLUID 250ML,Stationery,NSOUTAR,0.40,192003,JA01,0100020774,Y
05/06/2019,Organisational Safety Assuranc,LYRECO UK,15.00,Printing/Stationery/Photocopy,PK125 LYR ENV PLAIN 458X324 115G S/S MAN,Stationery,NSOUTAR,3.00,192003,JA01,0100020774,Y
02/06/2019,Human Resources,LINKEDIN-3,397.84,Recruitment Advertising,LINKEDIN-384*8607746,Continuous,ALANGDON,0.00,192003,JB01,0100020711,Y
03/06/2019,Human Resources,HTTPS://WW,12.87,Fitness Equipment Maintenance,HTTPS://WWW.POLIMIL.CO,Sporting G,PSYMINGTON,2.57,192003,HA07,0100020737,Y
03/06/2019,Human Resources,PAYPAL *CR,120.00,Recruitment Advertising,PAYPAL *CREATIVECOM,Consultant,ALANGDON,0.00,192003,JB01,0100020712,Y
05/06/2019,Human Resources,HTTPS://WW,-12.87,Operational Equipment,HTTPS://WWW.POLIMIL.CO,Sporting G,PSYMINGTON,-2.57,192003,HC00,0100020738,Y
06/06/2019,Human Resources,THRIFTY CA,391.61,Hired Transport,Vehicle Hire Charge,Thrify Ren,JTUCKER,35.28,192003,FD01,0100020884,Y
07/06/2019,Human Resources,PP*9073COD,1.00,External Prof Support/Advice,PP*9073CODE,Profession,NHARGREAVES,0.00,192003,HJ02,0100020924,Y
07/06/2019,Human Resources,PP*9073COD,-1.00,External Prof Support/Advice,PP*9073CODE,Profession,NHARGREAVES,0.00,192003,HJ02,0100020925,Y
08/06/2019,Human Resources,LINKEDIN-3,426.86,Recruitment Advertising,LINKEDIN-386*0733136,Continuous,ALANGDON,0.00,192003,JB01,0100020713,Y
13/06/2019,Human Resources,GREAVES SP,19.96,Fitness Equipment,GREAVES SPORTS,Sporting G,PSYMINGTON,3.99,192003,HA05,0100020739,Y
14/06/2019,Human Resources,THRIFTY CA,391.61,Hired Transport,Vehicle Hire Charge,Thrify Ren,JTUCKER,35.28,192003,FD01,0100020885,Y
20/06/2019,Human Resources,LYRECO UK,14.26,Standard Equipment,DESK FAN 3-SPEED 12  UK PLUG,Stationery,NSOUTAR,2.86,192003,HA01,0100020805,Y
20/06/2019,Human Resources,LYRECO UK,3.00,Printing/Stationery/Photocopy,LYRECO NOTEBOOK SPIRAL A4+ RULED 70G 80S,Stationery,NSOUTAR,0.60,192003,JA01,0100020802,Y
20/06/2019,Human Resources,LYRECO UK,9.16,Printing/Stationery/Photocopy,REXEL 4363 SINGLE HOLE PUNCH BLK,Stationery,NSOUTAR,1.83,192003,JA01,0100020802,Y
20/06/2019,Human Resources,LYRECO UK,1.13,Printing/Stationery/Photocopy,PK100 TREASURY TAG 76MM METAL END,Stationery,NSOUTAR,0.22,192003,JA01,0100020802,Y
20/06/2019,Human Resources,LYRECO UK,0.65,Printing/Stationery/Photocopy,SHATTER RESISTANT RULER 12 /30,Stationery,NSOUTAR,0.13,192003,JA01,0100020802,Y
20/06/2019,Human Resources,LYRECO UK,3.50,Printing/Stationery/Photocopy,LYRECO DOC WLLT F/CAP/FOLIO 250G  KRAFT,Stationery,NSOUTAR,0.70,192003,JA01,0100020802,Y
20/06/2019,Human Resources,LYRECO UK,0.49,Printing/Stationery/Photocopy,PK10 FINGER CONE NO. 00 EXTRA SML,Stationery,NSOUTAR,0.10,192003,JA01,0100020802,Y
20/06/2019,Human Resources,LYRECO UK,6.00,Printing/Stationery/Photocopy,LYRECO FEINT RULED & MARGIN RFL PAD A4,Stationery,NSOUTAR,1.20,192003,JA01,0100020802,Y
20/06/2019,Human Resources,LYRECO UK,4.30,Printing/Stationery/Photocopy,LYRECO SHORTHAND NOTEBOOK 150S 56G,Stationery,NSOUTAR,0.86,192003,JA01,0100020802,Y
20/06/2019,Human Resources,LYRECO UK,2.53,Printing/Stationery/Photocopy,CANON AS-120 DESKTOP CALC 12-DIG BLACK,Stationery,NSOUTAR,0.51,192003,JA01,0100020802,Y
20/06/2019,Human Resources,LYRECO UK,8.04,Printing/Stationery/Photocopy,PAPERMATE FLAIR FINELINER BLK,Stationery,NSOUTAR,1.61,192003,JA01,0100020802,Y
20/06/2019,Human Resources,LYRECO UK,9.00,Printing/Stationery/Photocopy,PILOT ACROBALL RT PEN PLASTIC CLIP M BLU,Stationery,NSOUTAR,1.80,192003,JA01,0100020802,Y
20/06/2019,Human Resources,LYRECO UK,9.00,Printing/Stationery/Photocopy,PILOT ACROBALL RT PEN PLASTIC CLIP M BLK,Stationery,NSOUTAR,1.80,192003,JA01,0100020802,Y
23/06/2019,Human Resources,LINKEDIN-3,395.68,Recruitment Advertising,LINKEDIN-389*1591006,Continuous,ALANGDON,0.00,192003,JB01,0100020714,Y
03/06/2019,Access and Rescue School,DOCKSIDE C,32.55,Catering/Refreshments,DOCKSIDE CAFE,Restaurant,RHARLING,0.00,192003,FD76,0100020966,Y
04/06/2019,Access and Rescue School,DOCKSIDE C,29.25,Catering/Refreshments,DOCKSIDE CAFE,Restaurant,RHARLING,0.00,192003,FD76,0100020967,Y
05/06/2019,Access and Rescue School,WELCOME BR,31.96,Subsistence Uniformed,WELCOME BREAK/SEDGEMOO,Misc Food,RHARLING,0.00,192003,FD75,0100020969,Y
05/06/2019,Access and Rescue School,STARBUCKS,15.25,Subsistence Uniformed,STARBUCKS OSWESTRY,Misc Food,RHARLING,0.00,192003,FD75,0100020970,Y
05/06/2019,Access and Rescue School,WELCOME BR,17.60,Subsistence Uniformed,WELCOME BREAK SEDGEMOO,Misc Food,JBOURN,0.00,192003,FD75,0100020881,Y
05/06/2019,Access and Rescue School,TABLE TABL,77.71,Catering/Refreshments,TABLE TABLE41011290,Restaurant,RHARLING,0.00,192003,FD76,0100020968,Y
05/06/2019,Access and Rescue School,PREMIER IN,836.00,Hotel Booking,PREMIER INN44011295,Premier Tr,RHARLING,0.00,192003,FD77,0100020972,Y
06/06/2019,Access and Rescue School,TABLE TABL,90.96,Catering/Refreshments,TABLE TABLE41011290,Restaurant,RHARLING,0.00,192003,FD76,0100020973,Y
06/06/2019,Access and Rescue School,TABLE TABL,38.00,Catering/Refreshments,TABLE TABLE41011290,Restaurant,RHARLING,0.00,192003,FD76,0100020974,Y
06/06/2019,Access and Rescue School,TESCO STOR,28.67,Catering/Refreshments,TESCO STORES 5194,Grocery St,RHARLING,0.00,192003,FD76,0100020971,Y
06/06/2019,Access and Rescue School,AMZNMktpla,30.47,Trng Equip Consumables,AMZNMktplace,Misc. Spec,SWIDNELL,0.00,192003,HA12,0100020877,Y
07/06/2019,Access and Rescue School,TESCO STOR,4.50,Catering/Refreshments,TESCO STORES 5194,Grocery St,RHARLING,0.00,192003,FD76,0100020975,Y
07/06/2019,Access and Rescue School,TABLE TABL,38.00,Catering/Refreshments,TABLE TABLE41011290,Restaurant,RHARLING,0.00,192003,FD76,0100020976,Y
07/06/2019,Access and Rescue School,ROADCHEF M,27.01,Catering/Refreshments,ROADCHEF M SERV UPAY L,Restaurant,JBOURN,0.00,192003,FD76,0100020882,Y
10/06/2019,Access and Rescue School,Amazon Pri,-9.32,Standard Equipment,Amazon Prime,Continuous,SHUNT,1.33,192003,HA01,0100020962,Y
10/06/2019,Access and Rescue School,MORRELLS W,14.51,Operational Equipment,MORRELLS WOODFINISHES LT,"Paint, Var",SHUNT,0.00,192003,HC00,0100020961,Y
10/06/2019,Access and Rescue School,HALFORDS 0,160.95,Operational Equipment,HALFORDS 0875,Bicycle Sh,RHARLING,0.00,192003,HC00,0100020978,Y
11/06/2019,Access and Rescue School,WWW.SAFEQU,321.60,Operational Equipment,WWW.SAFEQUIP.CO.UK,Misc Busin,RHARLING,0.00,192003,HC00,0100020979,Y
11/06/2019,Access and Rescue School,RIB RIDE,55.00,Operational Equipment,RIB RIDE,Sporting G,RHARLING,0.00,192003,HC00,0100020982,Y
12/06/2019,Access and Rescue School,PLYMOUTH S,77.70,Publications/Subscriptions,PLYMOUTH SEA CHEST LTD,Book Store,RHARLING,0.00,192003,JA04,0100020981,Y
14/06/2019,Access and Rescue School,THRIFTY CA,154.30,Hired Transport,Vehicle Hire Charge,Thrify Ren,KHARTGEN,0.00,192003,FD01,0100020896,Y
17/06/2019,Access and Rescue School,HALFORDS 0,29.99,Operational Equipment,HALFORDS 0446,Bicycle Sh,JBOURN,0.00,192003,HC00,0100020883,Y
19/06/2019,Access and Rescue School,PLYMOUTH S,195.15,Publications/Subscriptions,PLYMOUTH SEA CHEST LTD,Book Store,RHARLING,0.00,192003,JA04,0100020983,Y
07/06/2019,Fire Behaviour School,B & Q 1033,175.00,Unforseen Maintnce Mats Techn,INCINERATOR,Timber & B,SLEAMAN,35.00,192003,DA12,0100020870,Y
18/06/2019,Maritime Training School,XMA LTD,47.46,Print Consumables,305A BLACK LASERJET TONER CART,Programmin,NSOUTAR,9.49,192003,JA02,0100020831,Y
18/06/2019,Maritime Training School,XMA LTD,44.11,Print Consumables,HP 305A CYAN CONTRACT LASERJET TONER,Programmin,NSOUTAR,8.82,192003,JA02,0100020831,Y
18/06/2019,Maritime Training School,XMA LTD,44.11,Print Consumables,305A MAGENTA CONTRACT LASERJET TONER,Programmin,NSOUTAR,8.82,192003,JA02,0100020831,Y
18/06/2019,Maritime Training School,XMA LTD,44.11,Print Consumables,305A YELLOW CONTRACT LASERJET TONER,Programmin,NSOUTAR,8.82,192003,JA02,0100020831,Y
03/06/2019,Ops Licence School,DUNELM ONL,125.95,Trng Equip Consumables,DUNELM ONLINE ORDER,Drapery &,RNOYCE,0.00,192003,HA12,0100020995,Y
03/06/2019,Ops Licence School,DUNELM LTD,120.00,Trng Equip Consumables,DUNELM LTD,Drapery &,RNOYCE,0.00,192003,HA12,0100020996,Y
06/06/2019,Ops Licence School,AMZNMktpla,24.99,Standard Equipment,AMZNMktplace,Misc. Spec,BHUSTHWAITE,5.00,192003,HA01,0100020849,Y
06/06/2019,Ops Licence School,DUNELM ONL,-5.95,Trng Equip Consumables,DUNELM ONLINE ORDER,Drapery &,RNOYCE,0.00,192003,HA12,0100020997,Y
08/06/2019,Ops Licence School,WWW.TACTRE,86.40,Trng Equip Consumables,WWW.TACTREE.CO.UK,Medical &,RNOYCE,0.00,192003,HA12,0100020998,Y
09/06/2019,Ops Licence School,THE UNICOR,536.46,Meals for Training Courses,THE UNICORN,Restaurant,RNOYCE,0.00,192003,HH03,0100020999,Y
10/06/2019,Ops Licence School,THE UNICOR,207.84,Meals for Training Courses,THE UNICORN,Restaurant,RNOYCE,0.00,192003,HH03,0100021000,Y
10/06/2019,Ops Licence School,THE UNICOR,82.35,Meals for Training Courses,THE UNICORN,Restaurant,RNOYCE,0.00,192003,HH03,0100021001,Y
11/06/2019,Ops Licence School,SCREWFIX P,19.98,Standard Equipment,SCREWFIX PLYMOUTH VALLEY,Timber & B,BHUSTHWAITE,0.00,192003,HA01,0100020850,Y
11/06/2019,Ops Licence School,SAFETYSIGN,62.16,Trng Equip Consumables,SAFETYSIGNSUP.COUK,Commercial,RNOYCE,0.00,192003,HA12,0100021003,Y
11/06/2019,Ops Licence School,THE UNICOR,580.38,Meals for Training Courses,THE UNICORN,Restaurant,RNOYCE,0.00,192003,HH03,0100021002,Y
13/06/2019,Ops Licence School,THE UNICOR,279.21,Meals for Training Courses,THE UNICORN,Restaurant,RNOYCE,0.00,192003,HH03,0100021004,Y
15/06/2019,Ops Licence School,THE UNICOR,82.35,Meals for Training Courses,THE UNICORN,Restaurant,RNOYCE,0.00,192003,HH03,0100021005,Y
17/06/2019,Ops Licence School,THE UNICOR,209.31,Meals for Training Courses,THE UNICORN,Restaurant,RNOYCE,0.00,192003,HH03,0100021006,Y
18/06/2019,Ops Licence School,THE UNICOR,258.72,Meals for Training Courses,THE UNICORN,Restaurant,RNOYCE,0.00,192003,HH03,0100021007,Y
19/06/2019,Ops Licence School,THE UNICOR,258.72,Meals for Training Courses,THE UNICORN,Restaurant,RNOYCE,0.00,192003,HH03,0100021008,Y
20/06/2019,Ops Licence School,THE UNICOR,266.22,Meals for Training Courses,THE UNICORN,Restaurant,RNOYCE,0.00,192003,HH03,0100021009,Y
21/06/2019,Ops Licence School,AMZNMktpla,6.00,Standard Equipment,AMZNMktplace,Misc. Spec,BHUSTHWAITE,0.00,192003,HA01,0100020852,Y
21/06/2019,Ops Licence School,AMZNMKTPLA,8.07,Standard Equipment,AMZNMKTPLACE AMAZON.CO.UK,Misc. Spec,BHUSTHWAITE,0.00,192003,HA01,0100020853,Y
21/06/2019,Ops Licence School,THE UNICOR,82.35,Meals for Training Courses,THE UNICORN,Restaurant,RNOYCE,0.00,192003,HH03,0100021010,Y
25/06/2019,Ops Licence School,AMZNMktpla,21.31,Standard Equipment,AMZNMktplace,Misc. Spec,BHUSTHWAITE,2.66,192003,HA01,0100020854,Y
25/06/2019,Ops Licence School,AMAZON.CO.,23.48,Standard Equipment,AMAZON.CO.UK*M64UX6GZ4 AM,Misc. Spec,BHUSTHWAITE,0.00,192003,HA01,0100020855,Y
27/06/2019,Fire Safety Training School,LYRECO UK,6.51,Printing/Stationery/Photocopy,BX125 LYRECO B/B ENV 115G C4,Stationery,NSOUTAR,1.30,192003,JA01,0100020816,Y
04/06/2019,Academy Learning Support,KFC,15.61,Subsistence Uniformed,KFC,Fast Food,MARMSTRONG,0.00,192003,FD75,0100021018,Y
06/06/2019,Academy Learning Support,THRIFTY CA,61.54,Hired Transport,Vehicle Hire Charge,Thrify Ren,KHARTGEN,0.00,192003,FD01,0100020895,Y
07/06/2019,Academy Learning Support,TESCO STOR,10.00,Audio Visual Equipment,TESCO STORES 2947,Grocery St,MARMSTRONG,0.00,192003,HA02,0100021019,Y
07/06/2019,Academy Learning Support,AMAZON.CO.,79.92,Audio Visual Equipment,AMAZON.CO.UK*M651204O4 AM,Misc. Spec,MARMSTRONG,0.00,192003,HA02,0100021021,Y
07/06/2019,Academy Learning Support,iStock.com,65.00,Licence fees,iStock.com,Commercial,MARMSTRONG,0.00,192003,HA27,0100021020,Y
11/06/2019,Academy Learning Support,AMZNMktpla,20.82,Audio Visual Equipment,AMZNMktplace,Misc. Spec,MARMSTRONG,4.17,192003,HA02,0100021022,Y
13/06/2019,Academy Learning Support,REVIEWMYEL,235.80,Audio Visual Equipment,MEDIUM,Computer S,BHUSTHWAITE,0.00,192003,HA02,0100020851,Y
20/06/2019,Academy Learning Support,Amazon.co.,56.20,Audio Visual Equipment,Amazon.co.uk*M69WZ1G84,Direct Sal,MARMSTRONG,0.00,192003,HA02,0100021023,Y
27/06/2019,Academy Learning Support,FASTHOSTS,6.34,Licence fees,FASTHOSTS INTERNET,Computer N,MARMSTRONG,0.00,192003,HA27,0100021024,Y
01/06/2019,Academy Management,LYRECO UK,7.86,Printing/Stationery/Photocopy,VELCRO HOOK AND LOOP 5M,Stationery,NSOUTAR,1.57,192003,JA01,0100020769,Y
01/06/2019,Academy Management,LYRECO UK,3.93,Printing/Stationery/Photocopy,VELCRO HOOK AND LOOP 5M,Stationery,NSOUTAR,0.78,192003,JA01,0100020769,Y
01/06/2019,Academy Management,LYRECO UK,3.93,Printing/Stationery/Photocopy,VELCRO HOOK AND LOOP 5M,Stationery,NSOUTAR,0.79,192003,JA01,0100020769,Y
01/06/2019,Academy Management,LYRECO UK,5.20,Printing/Stationery/Photocopy,PK4 BIC VELLEDA 1701 W/BOARD MARKER ASS,Stationery,NSOUTAR,1.04,192003,JA01,0100020769,Y
01/06/2019,Academy Management,LYRECO UK,3.11,Printing/Stationery/Photocopy,BX4 STABILO BOSS EXECUTIVE H/LIGHTER ASS,Stationery,NSOUTAR,0.62,192003,JA01,0100020769,Y
01/06/2019,Academy Management,LYRECO UK,4.38,Printing/Stationery/Photocopy,PK4 LUMOCOLOR 316 N/PERM OHP PEN F ASSTD,Stationery,NSOUTAR,0.88,192003,JA01,0100020769,Y
01/06/2019,Academy Management,LYRECO UK,2.19,Printing/Stationery/Photocopy,PK4 LUMOCOLOR 316 N/PERM OHP PEN F ASSTD,Stationery,NSOUTAR,0.44,192003,JA01,0100020769,Y
01/06/2019,Academy Management,LYRECO UK,1.14,Printing/Stationery/Photocopy,LYRECO REPO CUBE 76X76 320SHT NEON COL,Stationery,NSOUTAR,0.22,192003,JA01,0100020769,Y
01/06/2019,Academy Management,LYRECO UK,7.41,Printing/Stationery/Photocopy,CUBE DISPENSER 10X10CM SMOKED TRANSP,Stationery,NSOUTAR,1.49,192003,JA01,0100020769,Y
01/06/2019,Academy Management,LYRECO UK,0.88,Printing/Stationery/Photocopy,LYRECO CLEAN TISSUES 50 WET/ 50 DRY,Stationery,NSOUTAR,0.17,192003,JA01,0100020769,Y
01/06/2019,Academy Management,LYRECO UK,8.32,Printing/Stationery/Photocopy,WHITEFURZE ALLSTORE BOX PP 10L CLEAR,Stationery,NSOUTAR,1.66,192003,JA01,0100020769,Y
01/06/2019,Academy Management,LYRECO UK,3.56,Printing/Stationery/Photocopy,EXPANDING FILE 12-PART PP BLK,Stationery,NSOUTAR,0.71,192003,JA01,0100020769,Y
01/06/2019,Academy Management,LYRECO UK,1.83,Printing/Stationery/Photocopy,BX5 MOUSE SHAPE W/BOARD ERASER REFILLS,Stationery,NSOUTAR,0.37,192003,JA01,0100020769,Y
01/06/2019,Academy Management,LYRECO UK,4.03,Printing/Stationery/Photocopy,BOARD ERASER MAGN MOUSE SHAPE BLK/SILV,Stationery,NSOUTAR,0.81,192003,JA01,0100020769,Y
01/06/2019,Academy Management,LYRECO UK,14.50,Printing/Stationery/Photocopy,LEGAMASTER 7-122600 W/BOARD HOLDER MAGN,Stationery,NSOUTAR,2.90,192003,JA01,0100020769,Y
01/06/2019,Academy Management,LYRECO UK,14.50,Printing/Stationery/Photocopy,LEGAMASTER 7-122600 W/BOARD HOLDER MAGN,Stationery,NSOUTAR,2.90,192003,JA01,0100020769,Y
01/06/2019,Academy Management,LYRECO UK,4.73,Printing/Stationery/Photocopy,LEGA 122000 TZ15 MARKER HOLDER WH,Stationery,NSOUTAR,0.94,192003,JA01,0100020769,Y
01/06/2019,Academy Management,LYRECO UK,4.73,Printing/Stationery/Photocopy,LEGA 122000 TZ15 MARKER HOLDER WH,Stationery,NSOUTAR,0.95,192003,JA01,0100020769,Y
06/06/2019,Academy Management,LYRECO UK,4.00,Printing/Stationery/Photocopy,LYRECO THINGS TO DO PAD,Stationery,NSOUTAR,0.80,192003,JA01,0100020777,Y
07/06/2019,Academy Management,LYRECO UK,10.23,Standard Equipment,PK20 ENERGIZER ALKALINE MAX PLUS AA,Stationery,NSOUTAR,2.04,192003,HA01,0100020782,Y
07/06/2019,Academy Management,LYRECO UK,10.23,Standard Equipment,PK20 ENERGIZER ALKALINE MAX PLUS AAA,Stationery,NSOUTAR,2.05,192003,HA01,0100020782,Y
07/06/2019,Academy Management,LYRECO UK,38.80,Printing/Stationery/Photocopy,RM500 LYRECO BUDGET PAPER A4 80G WH,Stationery,NSOUTAR,7.76,192003,JA01,0100020782,Y
07/06/2019,Academy Management,LYRECO UK,0.84,Printing/Stationery/Photocopy,LYRECO REPO NOTES 76X76MM 100SHT YLLW,Stationery,NSOUTAR,0.17,192003,JA01,0100020783,Y
07/06/2019,Academy Management,LYRECO UK,4.00,Printing/Stationery/Photocopy,LYRECO HARD BACK TWIN WIRE NOTEBOOK A4,Stationery,NSOUTAR,0.80,192003,JA01,0100020783,Y
07/06/2019,Academy Management,LYRECO UK,2.00,Printing/Stationery/Photocopy,LYRECO MID YEAR PLANNER,Stationery,NSOUTAR,0.40,192003,JA01,0100020783,Y
07/06/2019,Academy Management,LYRECO UK,4.30,Printing/Stationery/Photocopy,LYRECO SHORTHAND NOTEBOOK 150S 56G,Stationery,NSOUTAR,0.86,192003,JA01,0100020783,Y
07/06/2019,Academy Management,LYRECO UK,1.32,Printing/Stationery/Photocopy,LYRECO GEL INK PEN 0.7MM RED,Stationery,NSOUTAR,0.26,192003,JA01,0100020783,Y
07/06/2019,Academy Management,LYRECO UK,3.61,Printing/Stationery/Photocopy,BX50 SECO PP80 PUNCH POCK A4 80MI,Stationery,NSOUTAR,0.72,192003,JA01,0100020783,Y
07/06/2019,Academy Management,LYRECO UK,5.42,Printing/Stationery/Photocopy,OSCO MD01-WHT DESK ORG WIREMESH WH,Stationery,NSOUTAR,1.09,192003,JA01,0100020783,Y
07/06/2019,Academy Management,LYRECO UK,2.90,Printing/Stationery/Photocopy,LYRECO HARD BACK TWIN WIRE NOTEBOOK A5,Stationery,NSOUTAR,0.58,192003,JA01,0100020782,Y
11/06/2019,Academy Management,R3 SAFETY,1.87,External Trainer Hire,R3 SAFETY AND RESCUE L,Schools,SWIDNELL,0.00,192003,AE15,0100020878,Y
11/06/2019,Academy Management,R3 SAFETY,185.13,External Trainer Hire,R3 SAFETY AND RESCUE L,Schools,SWIDNELL,0.00,192003,AE15,0100020879,Y
11/06/2019,Academy Management,LYRECO UK,1.08,Printing/Stationery/Photocopy,LYRECO GEL INK PEN 0.7MM BLK,Stationery,NSOUTAR,0.21,192003,JA01,0100020793,Y
11/06/2019,Academy Management,LYRECO UK,5.04,Printing/Stationery/Photocopy,AVERY W44 WIDE ENTRY LETTER TRAY BLK,Stationery,NSOUTAR,1.00,192003,JA01,0100020791,Y
11/06/2019,Academy Management,LYRECO UK,7.46,Printing/Stationery/Photocopy,FELLOWES PLUSH TOUCH MOUSE PAD FOAM BLK,Stationery,NSOUTAR,1.50,192003,JA01,0100020791,Y
11/06/2019,Academy Management,LYRECO UK,11.88,Printing/Stationery/Photocopy,UNIBALL GEL IMPACT R/BALL 1.0MM BLACK,Stationery,NSOUTAR,2.37,192003,JA01,0100020791,Y
20/06/2019,Academy Management,LYRECO UK,23.00,Provisions Purchase,DOUWE EGBERTS CONTINENTAL RICHROAST 750G,Stationery,NSOUTAR,0.00,192003,HH01,0100020801,Y
20/06/2019,Academy Management,LYRECO UK,23.26,Provisions Purchase,TETLEY 1100S - 1 CUP TEA BAGS,Stationery,NSOUTAR,0.00,192003,HH01,0100020801,Y
20/06/2019,Academy Management,LYRECO UK,0.28,Printing/Stationery/Photocopy,SET4 CONTRACT RISER RODS,Stationery,NSOUTAR,0.05,192003,JA01,0100020801,Y
21/06/2019,Academy Management,LYRECO UK,27.42,Standard Equipment,EDDING 950-1 INDUSTRY PAINT MARK BLACK,Stationery,NSOUTAR,5.48,192003,HA01,0100020806,Y
21/06/2019,Academy Management,LYRECO UK,20.46,Standard Equipment,PK20 ENERGIZER ALKALINE MAX PLUS AA,Stationery,NSOUTAR,4.09,192003,HA01,0100020806,Y
21/06/2019,Academy Management,LYRECO UK,5.95,Printing/Stationery/Photocopy,VERSAPAK GUSSET MAIL POUCH MEDIUM RED,Stationery,NSOUTAR,1.19,192003,JA01,0100020806,Y
21/06/2019,Academy Management,LYRECO UK,2.53,Printing/Stationery/Photocopy,PK50 LYRECO DOCUMENT WALLETS ASSORTED,Stationery,NSOUTAR,0.51,192003,JA01,0100020806,Y
21/06/2019,Academy Management,LYRECO UK,6.30,Printing/Stationery/Photocopy,LYRECO PAD GLUED 4H-PUNCH A4 RUL 60G 80S,Stationery,NSOUTAR,1.26,192003,JA01,0100020806,Y
21/06/2019,Academy Management,LYRECO UK,2.26,Printing/Stationery/Photocopy,PK100 LYRECO POCK A4 80MIC CLEAR GLASS,Stationery,NSOUTAR,0.45,192003,JA01,0100020806,Y
22/06/2019,Academy Management,LYRECO UK,3.48,Standard Equipment,4-GANG TRAILING SOCKET 2M MM5486,Stationery,NSOUTAR,0.69,192003,HA01,0100020810,Y
22/06/2019,Academy Management,LYRECO UK,5.42,Printing/Stationery/Photocopy,OSCO MD01-WHT DESK ORG WIREMESH WH,Stationery,NSOUTAR,1.09,192003,JA01,0100020810,Y
22/06/2019,Academy Management,LYRECO UK,1.08,Printing/Stationery/Photocopy,LYRECO GEL INK PEN 0.7MM BLK,Stationery,NSOUTAR,0.21,192003,JA01,0100020810,Y
22/06/2019,Academy Management,LYRECO UK,10.84,Printing/Stationery/Photocopy,PK500 VERSAPAK T2 SEAL WHITE,Stationery,NSOUTAR,2.17,192003,JA01,0100020810,Y
25/06/2019,Academy Management,MADE WELL,33.75,Catering/Refreshments,MADE WELL COMMUNITY INTER,Restaurant,SWIDNELL,0.00,192003,FD76,0100020880,Y
27/06/2019,Academy Management,THE GEORGE,42.35,Catering/Refreshments,THE GEORGE INN,Restaurant,SWEST,0.00,192003,FD76,0100020742,Y
04/06/2019,Community Safety Prevention,AMZNMKTPLA,104.32,Standard Equipment,AMZNMKTPLACE AMAZON.CO.UK,Misc. Spec,AWHITE,8.36,192003,HA01,0100020705,Y
04/06/2019,Community Safety Prevention,AMZNMktpla,10.43,Standard Equipment,AMZNMktplace,Misc. Spec,AWHITE,2.09,192003,HA01,0100020702,Y
05/06/2019,Community Safety Prevention,LYRECO UK,3.02,Printing/Stationery/Photocopy,RAPID FM14 FULL STRIP STAPLER BLK,Stationery,NSOUTAR,0.60,192003,JA01,0100020775,Y
05/06/2019,Community Safety Prevention,LYRECO UK,8.00,Printing/Stationery/Photocopy,LYRECO HARD BACK TWIN WIRE NOTEBOOK A4,Stationery,NSOUTAR,1.60,192003,JA01,0100020775,Y
05/06/2019,Community Safety Prevention,LYRECO UK,3.79,Printing/Stationery/Photocopy,PK8 LYRECO CLEAR TAPE 19MMX66M,Stationery,NSOUTAR,0.76,192003,JA01,0100020775,Y
06/06/2019,Community Safety Prevention,THRIFTY CA,407.15,Hired Transport,Vehicle Hire Charge,Thrify Ren,JTUCKER,36.68,192003,FD01,0100020884,Y
06/06/2019,Community Safety Prevention,THRIFTY CA,341.88,Hired Transport,Vehicle Hire Charge,Thrify Ren,JTUCKER,31.08,192003,FD01,0100020884,Y
07/06/2019,Community Safety Prevention,LYRECO UK,15.14,Standard Equipment,MELAMINE W/BOARD 90X120CM,Stationery,NSOUTAR,3.02,192003,HA01,0100020784,Y
07/06/2019,Community Safety Prevention,LYRECO UK,4.73,Printing/Stationery/Photocopy,LEGA 122000 TZ15 MARKER HOLDER WH,Stationery,NSOUTAR,0.95,192003,JA01,0100020784,Y
07/06/2019,Community Safety Prevention,LYRECO UK,4.54,Printing/Stationery/Photocopy,LYRECO WHITEBOARD STARTER KIT,Stationery,NSOUTAR,0.91,192003,JA01,0100020784,Y
07/06/2019,Community Safety Prevention,LYRECO UK,2.71,Printing/Stationery/Photocopy,BX100 LYRECO C/FLUSH FOLDER 110MI TRANSP,Stationery,NSOUTAR,0.54,192003,JA01,0100020784,Y
08/06/2019,Community Safety Prevention,LYRECO UK,5.80,Printing/Stationery/Photocopy,LYRECO HARD BACK TWIN WIRE NOTEBOOK A5,Stationery,NSOUTAR,1.16,192003,JA01,0100020788,Y
11/06/2019,Community Safety Prevention,WWW.SOUTHW,86.85,Standard Equipment,WWW.SOUTHWESTEVENTHIRE.C,"Equipment,",AWHITE,0.00,192003,HA01,0100020706,Y
11/06/2019,Community Safety Prevention,B & Q 1049,2.17,Standard Equipment,MAG SCREWDR,Timber & B,AWHITE,0.43,192003,HA01,0100020707,Y
11/06/2019,Community Safety Prevention,B & Q 1049,2.17,Standard Equipment,MAG SCREWDR,Timber & B,AWHITE,0.43,192003,HA01,0100020707,Y
11/06/2019,Community Safety Prevention,B & Q 1049,2.42,Standard Equipment,MAG SCREWDR,Timber & B,AWHITE,0.48,192003,HA01,0100020707,Y
11/06/2019,Community Safety Prevention,B & Q 1049,2.21,Standard Equipment,MAG SCREWDR,Timber & B,AWHITE,0.44,192003,HA01,0100020707,Y
11/06/2019,Community Safety Prevention,B & Q 1049,2.48,Standard Equipment,MAG SCREWDR,Timber & B,AWHITE,0.49,192003,HA01,0100020707,Y
11/06/2019,Community Safety Prevention,B & Q 1049,2.42,Standard Equipment,MAG SCREWDR,Timber & B,AWHITE,0.48,192003,HA01,0100020707,Y
11/06/2019,Community Safety Prevention,B & Q 1049,2.21,Standard Equipment,MAG SCREWDR,Timber & B,AWHITE,0.44,192003,HA01,0100020707,Y
11/06/2019,Community Safety Prevention,B & Q 1049,2.21,Standard Equipment,MAG SCREWDR,Timber & B,AWHITE,0.44,192003,HA01,0100020707,Y
13/06/2019,Community Safety Prevention,AMAZON PRI,6.66,Standard Equipment,AMAZON PRIME*M63535TK4 AM,Continuous,AWHITE,1.33,192003,HA01,0100020708,Y
14/06/2019,Community Safety Prevention,THRIFTY CA,341.88,Hired Transport,Vehicle Hire Charge,Thrify Ren,JTUCKER,31.08,192003,FD01,0100020885,Y
14/06/2019,Community Safety Prevention,THRIFTY CA,403.48,Hired Transport,Vehicle Hire Charge,Thrify Ren,JTUCKER,36.68,192003,FD01,0100020885,Y
20/06/2019,Community Safety Prevention,Amazon.co.,85.68,Publications/Subscriptions,Amazon.co.uk*M62L80GK4,Direct Sal,AWHITE,0.00,192003,JA04,0100020709,Y
26/06/2019,Community Safety Prevention,LYRECO UK,2.00,Printing/Stationery/Photocopy,SCOTCH 810 MAGIC TAPE 19MMX33M,Stationery,NSOUTAR,0.40,192003,JA01,0100020815,Y
26/06/2019,Community Safety Prevention,LYRECO UK,14.83,Printing/Stationery/Photocopy,KEYBOARD WRIST REST GEL PAD BLK,Stationery,NSOUTAR,2.97,192003,JA01,0100020815,Y
26/06/2019,Community Safety Prevention,LYRECO UK,0.25,Printing/Stationery/Photocopy,LYRECO BUDGET SCISSORS PLAST SYM 17CM,Stationery,NSOUTAR,0.05,192003,JA01,0100020815,Y
26/06/2019,Community Safety Prevention,LYRECO UK,7.94,Printing/Stationery/Photocopy,SCOTCH C38 DESK DISPENSER+3 ROLLS MAGIC,Stationery,NSOUTAR,1.59,192003,JA01,0100020815,Y
26/06/2019,Community Safety Prevention,LYRECO UK,5.12,Printing/Stationery/Photocopy,PK10 SCOTCH BRITE SPONGE SCOURERS,Stationery,NSOUTAR,1.02,192003,JA01,0100020815,Y
26/06/2019,Community Safety Prevention,LYRECO UK,12.20,Printing/Stationery/Photocopy,LYRECO BACTERICIDAL HAND GEL PUMP 500ML,Stationery,NSOUTAR,2.44,192003,JA01,0100020815,Y
26/06/2019,Community Safety Prevention,LYRECO UK,1.77,Printing/Stationery/Photocopy,BX70 LYRECO WET WIPES OFFICE,Stationery,NSOUTAR,0.36,192003,JA01,0100020815,Y
26/06/2019,Community Safety Prevention,LYRECO UK,1.16,Printing/Stationery/Photocopy,LYRECO BACTERI TEL/SURFACE CLEANER 250ML,Stationery,NSOUTAR,0.23,192003,JA01,0100020815,Y
26/06/2019,Community Safety Prevention,LYRECO UK,0.12,Printing/Stationery/Photocopy,WEDGE METAL PENCIL SHARPENER,Stationery,NSOUTAR,0.02,192003,JA01,0100020815,Y
26/06/2019,Community Safety Prevention,LYRECO UK,0.31,Printing/Stationery/Photocopy,BX12 LYRECO GRAPHITE PENCIL W/ERASER HB,Stationery,NSOUTAR,0.07,192003,JA01,0100020815,Y
26/06/2019,Community Safety Prevention,LYRECO UK,0.48,Printing/Stationery/Photocopy,LYRECO B/POINT PEN MED POINT BLK,Stationery,NSOUTAR,0.09,192003,JA01,0100020815,Y
05/06/2019,Performing Rescues Capabilities,AMAZON.CO.,124.00,Print Consumables,AMAZON.CO.UK*M62WX4F54 AM,Misc. Spec,JOLIVER,0.00,192003,JA02,0100020746,Y
22/06/2019,Hazmat Capabilities,CBRN TAC,295.74,Seminars/Conferences,CBRN TAC,Computer S,SMCNAMARA,0.00,192003,AE13,0100020915,Y
22/06/2019,Hazmat Capabilities,WWW.PARKIN,60.00,Hotel Booking,WWW.PARKINGEYE.CO.UK,Government,SMCNAMARA,0.00,192003,FD77,0100020916,Y
23/06/2019,Hazmat Capabilities,Amazon.co.,93.00,Print Consumables,Amazon.co.uk*M63107VI4,Direct Sal,JOLIVER,0.00,192003,JA02,0100020747,Y
26/06/2019,Hazmat Capabilities,Amazon.co.,31.00,Print Consumables,Amazon.co.uk*M67NK9H94,Direct Sal,JOLIVER,0.00,192003,JA02,0100020749,Y
02/06/2019,CS Protection,AMZNMktpla,423.46,Standard Equipment,AMZNMktplace,Misc. Spec,AWHITE,38.50,192003,HA01,0100020700,Y
03/06/2019,CS Protection,COSTA COFF,3.05,Catering/Refreshments,COSTA COFFEE 43041140,Fast Food,DPOWLESLAND,0.00,192003,FD76,0100020941,Y
03/06/2019,CS Protection,THE CROWN,13.50,Catering/Refreshments,THE CROWN &SCEPTRE,Restaurant,DPOWLESLAND,0.00,192003,FD76,0100020942,Y
03/06/2019,CS Protection,AMZNMktpla,242.97,Standard Equipment,AMZNMktplace,Misc. Spec,AWHITE,0.00,192003,HA01,0100020701,Y
04/06/2019,CS Protection,PIZZA EXPR,24.95,Catering/Refreshments,PIZZA EXPRESS,Restaurant,DPOWLESLAND,0.00,192003,FD76,0100020943,Y
04/06/2019,CS Protection,AMZNMktpla,33.69,Standard Equipment,AMZNMktplace,Misc. Spec,AWHITE,6.75,192003,HA01,0100020703,Y
04/06/2019,CS Protection,AMZNMktpla,6.62,Standard Equipment,AMZNMktplace,Misc. Spec,AWHITE,1.33,192003,HA01,0100020704,Y
05/06/2019,CS Protection,PIZZA EXPR,24.95,Catering/Refreshments,PIZZA EXPRESS,Restaurant,DPOWLESLAND,0.00,192003,FD76,0100020944,Y
17/06/2019,CS Protection,EB *PRIMAR,15.00,Operational Equipment,EB *PRIMARY AUTHORITY,Misc Busin,DPOWLESLAND,0.00,192003,HC00,0100020945,Y
25/06/2019,CS Protection,WELCOME BR,12.40,Subsistence Uniformed,WELCOME BREAK WHS,Misc Food,DPOWLESLAND,2.60,192003,FD75,0100020946,Y
21/06/2019,Finance,LYRECO UK,11.91,Printing/Stationery/Photocopy,RL260X2 DYMO ADDRESS LABEL 89X36MM WH,Stationery,NSOUTAR,2.39,192003,JA01,0100020808,Y
"49,760.97",,,,,,
